{"text_format":"3","workbook":"xlsx","n_sheets":3,"sheets":["Points","HR","EN"],"not_rendered":{"defined_names":1},"read":"whole","date_system":"1900"}

{"sheet":"Points","index":0,"n_rows":847,"n_cols":12,"rows_kept":847,"hidden":true}
["vlookup_key","vlookup_key","jmbag","Prezime","Ime","Prezime i ime","Player","matching","outcome","Moodle","Kahoot","Kahoot>Schoolwork"]
[{"$f":"IF(C2<>\"\",C2&\"-\"& VALUE(I2),\"Ne postoji JMBAG\")","v":"0321028458-1"},{"$f":"IF(C2<>\"\",\"PostojiJMBAG\",F2&\"-\"& VALUE(I2))","v":"PostojiJMBAG"},"0321028458","Anastasov","Marino","Anastasov Marino","marino a","reversed username 4",1,1.9,1.75,"No"]
[{"$f":"IF(C3<>\"\",C3&\"-\"& VALUE(I3),\"Ne postoji JMBAG\")","v":"0321028458-3"},{"$f":"IF(C3<>\"\",\"PostojiJMBAG\",F3&\"-\"& VALUE(I3))","v":"PostojiJMBAG"},"0321028458","Anastasov","Marino","Anastasov Marino","marino a","reversed username 4",3,null,0.75,"No"]
["0321028458-4","PostojiJMBAG","0321028458","Anastasov","Marino","Anastasov Marino","marino a","reversed username 4",4,null,3,"No"]
["0321028458-5","PostojiJMBAG","0321028458","Anastasov","Marino","Anastasov Marino","marino a","reversed username 4",5,0.6,0,"No"]
["0321028458-7","PostojiJMBAG","0321028458","Anastasov","Marino","Anastasov Marino","marino a","reversed username 4",7,2.5,1,"No"]
["0321028458-9","PostojiJMBAG","0321028458","Anastasov","Marino","Anastasov Marino","marino a","reversed username 4",9,2.3,0,"No"]
["0195045059-1","PostojiJMBAG","0195045059","Andrašić","Luka","Andrašić Luka","luka a","reversed username 4",1,3,1.5,"No"]
["0195045059-2","PostojiJMBAG","0195045059","Andrašić","Luka","Andrašić Luka","luka a","reversed username 4",2,2.4,1,"No"]
["0195045059-3","PostojiJMBAG","0195045059","Andrašić","Luka","Andrašić Luka","luka a","reversed username 4",3,2.1,0.75,"No"]
["0195045059-5","PostojiJMBAG","0195045059","Andrašić","Luka","Andrašić Luka","luka a","reversed username 4",5,2.8,0,"No"]
["0195045059-6","PostojiJMBAG","0195045059","Andrašić","Luka","Andrašić Luka","luka a","reversed username 4",6,2,1,"No"]
["0195045059-7","PostojiJMBAG","0195045059","Andrašić","Luka","Andrašić Luka","luka a","reversed username 4",7,2.5,1,"No"]
["Ne postoji JMBAG","Andrić Mateo-1",null,"Andrić","Mateo","Andrić Mateo","mateo a","reversed username 4",1,1.5,1.75,"No"]
["Ne postoji JMBAG","Andrić Mateo-3",null,"Andrić","Mateo","Andrić Mateo","mateo a","reversed username 4",3,1.9,0.5,"No"]
["Ne postoji JMBAG","Andrić Mateo-4",null,"Andrić","Mateo","Andrić Mateo","mandric","direct",4,1.6,2,"No"]
["0321025830-1","PostojiJMBAG","0321025830","Andrić","Tina","Andrić Tina","tandric","direct",1,2.3,1.75,"No"]
["7606002883-1","PostojiJMBAG","7606002883","Antolović","Noa","Antolović Noa","noa antolovic","one first and last name",1,2.3,1.25,"No"]
["7606002883-3","PostojiJMBAG","7606002883","Antolović","Noa","Antolović Noa","noa antolovic","one first and last name",3,3,0.25,"No"]
["7606002883-4","PostojiJMBAG","7606002883","Antolović","Noa","Antolović Noa","noa antolovic","one first and last name",4,3,1.5,"No"]
["7606002883-5","PostojiJMBAG","7606002883","Antolović","Noa","Antolović Noa","noa antolovic","one first and last name",5,3,0.5,"No"]
["7606002883-6","PostojiJMBAG","7606002883","Antolović","Noa","Antolović Noa","noa antolovic","one first and last name",6,3,1.5,"No"]
["7606002883-7","PostojiJMBAG","7606002883","Antolović","Noa","Antolović Noa","noaa","reversed username 4",7,3,0.75,"No"]
["7606002883-9","PostojiJMBAG","7606002883","Antolović","Noa","Antolović Noa","noa a","reversed username 4",9,2.3,0,"No"]
["7606003368-1","PostojiJMBAG","7606003368","Antunović","Nina","Antunović Nina","nina a","reversed username 4",1,1.5,1.5,"No"]
["7606003368-7","PostojiJMBAG","7606003368","Antunović","Nina","Antunović Nina","nina a","reversed username 4",7,null,0,"No"]
["7606003854-1","PostojiJMBAG","7606003854","Arežina","Marko","Arežina Marko","marko a","reversed username 4",1,1.9,1,"Yes"]
["7606003854-3","PostojiJMBAG","7606003854","Arežina","Marko","Arežina Marko","ma","reversed username 2",3,1.89999999999999,0,"No"]
["7606003854-5","PostojiJMBAG","7606003854","Arežina","Marko","Arežina Marko","ma","reversed username 2",5,0.8,0.75,"No"]
["Ne postoji JMBAG","Baltić Alan-1",null,"Baltić","Alan","Baltić Alan","alan b","reversed username 4",1,2.3,1.5,"No"]
["Ne postoji JMBAG","Baltić Alan-3",null,"Baltić","Alan","Baltić Alan","alanb","reversed username 4",3,1.3,0.5,"No"]
["Ne postoji JMBAG","Baltić Alan-4",null,"Baltić","Alan","Baltić Alan","alanb","reversed username 4",4,2,1.5,"No"]
["Ne postoji JMBAG","Baltić Alan-5",null,"Baltić","Alan","Baltić Alan","alanb","reversed username 4",5,2.4,0,"No"]
["Ne postoji JMBAG","Baltić Alan-6",null,"Baltić","Alan","Baltić Alan","alanb","reversed username 4",6,2.4,0.5,"No"]
["Ne postoji JMBAG","Baltić Alan-7",null,"Baltić","Alan","Baltić Alan","alanb","reversed username 4",7,2.9,1.5,"Yes"]
["Ne postoji JMBAG","Baltić Alan-8",null,"Baltić","Alan","Baltić Alan","alanb","reversed username 4",8,2.3,1,"No"]
["Ne postoji JMBAG","Baltić Alan-9",null,"Baltić","Alan","Baltić Alan","alanb","reversed username 4",9,3,0,"No"]
["Ne postoji JMBAG","Banda Pino-1",null,"Banda","Pino","Banda Pino","pinobanda","reversed username 4",1,2.3,0.666666666666666,"No"]
["Ne postoji JMBAG","Banda Pino-3",null,"Banda","Pino","Banda Pino","pinob","reversed username 4",3,2.5,0.5,"No"]
["Ne postoji JMBAG","Banda Pino-4",null,"Banda","Pino","Banda Pino","pbanda","direct",4,3,2.5,"No"]
["Ne postoji JMBAG","Banda Pino-5",null,"Banda","Pino","Banda Pino","pinobanda","reversed username 4",5,1.8,1,"No"]
["Ne postoji JMBAG","Banda Pino-7",null,"Banda","Pino","Banda Pino","pinob","reversed username 4",7,3,0.75,"No"]
["Ne postoji JMBAG","Banda Pino-9",null,"Banda","Pino","Banda Pino","pinob","reversed username 4",9,3,2,"No"]
["7606002493-1","PostojiJMBAG","7606002493","Barun","Matej","Barun Matej","mbarun","reversed username",1,1.5,1.25,"No"]
["7606002493-3","PostojiJMBAG","7606002493","Barun","Matej","Barun Matej","mbarun","direct",3,3,0.25,"No"]
["7606002493-4","PostojiJMBAG","7606002493","Barun","Matej","Barun Matej","mbarun","direct",4,3,2.5,"No"]
["7606002493-5","PostojiJMBAG","7606002493","Barun","Matej","Barun Matej","mbarun","direct",5,2.5,0.5,"No"]
["7606002493-7","PostojiJMBAG","7606002493","Barun","Matej","Barun Matej","mbarun","direct",7,3,1.5,"No"]
["7606002493-9","PostojiJMBAG","7606002493","Barun","Matej","Barun Matej","mbarun","direct",9,2.3,0,"Yes"]
["7606002899-1","PostojiJMBAG","7606002899","Bebek","Bruno","Bebek Bruno","bbebek","direct",1,1.1,2.5,"No"]
["7606002899-3","PostojiJMBAG","7606002899","Bebek","Bruno","Bebek Bruno","bebek","only last name",3,1.8,0.75,"No"]
["7606002899-4","PostojiJMBAG","7606002899","Bebek","Bruno","Bebek Bruno","bbebek","direct",4,3,1.5,"No"]
["7606002899-5","PostojiJMBAG","7606002899","Bebek","Bruno","Bebek Bruno","bebek","only last name",5,1.5,0.5,"No"]
["7606002899-6","PostojiJMBAG","7606002899","Bebek","Bruno","Bebek Bruno","bebek","only last name",6,2.6,2.5,"No"]
["7606002899-7","PostojiJMBAG","7606002899","Bebek","Bruno","Bebek Bruno","bebek","only last name",7,2,0.75,"No"]
["7606002899-8","PostojiJMBAG","7606002899","Bebek","Bruno","Bebek Bruno","bebek","only last name",8,2.7,1,"No"]
["Ne postoji JMBAG","Bečeić Dean-1",null,"Bečeić","Dean","Bečeić Dean","deanbeceic","reversed username 4",1,2.3,0.333333333333333,"No"]
["Ne postoji JMBAG","Bečeić Dean-3",null,"Bečeić","Dean","Bečeić Dean","deanb","reversed username 4",3,1.4,0,"No"]
["Ne postoji JMBAG","Bečeić Dean-4",null,"Bečeić","Dean","Bečeić Dean","deanb","reversed username 4",4,1.8,2,"No"]
["Ne postoji JMBAG","Bečeić Dean-5",null,"Bečeić","Dean","Bečeić Dean","deanb","reversed username 4",5,null,0.5,"No"]
["Ne postoji JMBAG","Bilal Tony-1",null,"Bilal","Tony","Bilal Tony","tony bilal","reversed username",1,2.6,1.25,"No"]
["Ne postoji JMBAG","Bilal Tony-3",null,"Bilal","Tony","Bilal Tony","tbilal","reversed username",3,2.4,0,"No"]
["Ne postoji JMBAG","Bilal Tony-4",null,"Bilal","Tony","Bilal Tony","tbilal","reversed username",4,2.7,0,"No"]
["Ne postoji JMBAG","Bilal Tony-5",null,"Bilal","Tony","Bilal Tony","tbilal","reversed username",5,1.1,0,"No"]
["Ne postoji JMBAG","Biškup Karlo-1",null,"Biškup","Karlo","Biškup Karlo","karlo b","reversed username 4",1,2.6,1.17,"No"]
["Ne postoji JMBAG","Biškup Karlo-3",null,"Biškup","Karlo","Biškup Karlo","karlo b","reversed username 4",3,1.3,0.5,"No"]
[{"$f":"IF(C67<>\"\",C67&\"-\"& VALUE(I67),\"Ne postoji JMBAG\")","v":"Ne postoji JMBAG"},{"$f":"IF(C67<>\"\",\"PostojiJMBAG\",F67&\"-\"& VALUE(I67))","v":"Biškup Karlo-4"},null,"Biškup","Karlo","Biškup Karlo","karlo b","reversed username 4",4,2.79999999999999,2.33,"No"]
["Ne postoji JMBAG","Biškup Karlo-5",null,"Biškup","Karlo","Biškup Karlo","karlo b","reversed username 4",5,1.3,0,"No"]
["Ne postoji JMBAG","Biškup Karlo-6",null,"Biškup","Karlo","Biškup Karlo","karlo b","reversed username 4",6,1.6,0,"No"]
["Ne postoji JMBAG","Biškup Karlo-7",null,"Biškup","Karlo","Biškup Karlo","karlo b","reversed username 4",7,null,0.5,"No"]
["Ne postoji JMBAG","Biškup Karlo-8",null,"Biškup","Karlo","Biškup Karlo","karlo b","reversed username 4",8,null,1,"No"]
["7606001678-1","PostojiJMBAG","7606001678","Bobovec","Kristijan","Bobovec Kristijan","bobovec k","reversed username 2",1,3,1.5,"No"]
["7606001678-3","PostojiJMBAG","7606001678","Bobovec","Kristijan","Bobovec Kristijan","bobovec k","reversed username 2",3,3,2,"No"]
["7606001678-4","PostojiJMBAG","7606001678","Bobovec","Kristijan","Bobovec Kristijan","bobovec k","reversed username 2",4,3,3,"No"]
["7606001678-5","PostojiJMBAG","7606001678","Bobovec","Kristijan","Bobovec Kristijan","bobovec k","reversed username 2",5,2.3,1,"No"]
["7606001678-6","PostojiJMBAG","7606001678","Bobovec","Kristijan","Bobovec Kristijan","bobovec k","reversed username 2",6,3,1.5,"No"]
["7606001678-7","PostojiJMBAG","7606001678","Bobovec","Kristijan","Bobovec Kristijan","bobovec k","reversed username 2",7,2.5,1.5,"No"]
["7606001678-9","PostojiJMBAG","7606001678","Bobovec","Kristijan","Bobovec Kristijan","bobovec k","reversed username 2",9,3,0,"No"]
["0165055518-1","PostojiJMBAG","0165055518","Borbaš","Krešimir","Borbaš Krešimir","kborbas","direct",1,1.1,3,"No"]
["0165055518-3","PostojiJMBAG","0165055518","Borbaš","Krešimir","Borbaš Krešimir","borbask","reversed username 2",3,3,0.75,"No"]
["0165055518-4","PostojiJMBAG","0165055518","Borbaš","Krešimir","Borbaš Krešimir","borbask","reversed username 2",4,3,3,"No"]
["0165055518-5","PostojiJMBAG","0165055518","Borbaš","Krešimir","Borbaš Krešimir","borbask","reversed username 2",5,2.9,0.5,"Yes"]
["0165055518-6","PostojiJMBAG","0165055518","Borbaš","Krešimir","Borbaš Krešimir","borbask","reversed username 2",6,3,2.5,"Yes"]
["0165055518-7","PostojiJMBAG","0165055518","Borbaš","Krešimir","Borbaš Krešimir","borbask","reversed username 2",7,3,2.25,"No"]
["0165055518-8","PostojiJMBAG","0165055518","Borbaš","Krešimir","Borbaš Krešimir","borbask","reversed username 2",8,3,2.5,"Yes"]
["0165055518-9","PostojiJMBAG","0165055518","Borbaš","Krešimir","Borbaš Krešimir","borbask","reversed username 2",9,3,1.5,"No"]
["0321028528-6","PostojiJMBAG","0321028528","Borse","Bartol","Borse Bartol","bborse","direct",6,2.6,0,"No"]
["Ne postoji JMBAG","Boršić  Pia-1",null,"Boršić ","Pia","Boršić  Pia","pia borsic","reversed username 4",1,0.8,0,"No"]
["Ne postoji JMBAG","Boršić  Pia-4",null,"Boršić ","Pia","Boršić  Pia","pia","repeating characters in first name",4,1.7,1.5,"No"]
["Ne postoji JMBAG","Boršić  Pia-5",null,"Boršić ","Pia","Boršić  Pia","pia","repeating characters in first name",5,1.1,0,"No"]
["Ne postoji JMBAG","Boršić  Pia-7",null,"Boršić ","Pia","Boršić  Pia","pia","repeating characters in first name",7,null,0.5,"No"]
["7606001699-1","PostojiJMBAG","7606001699","Bošnjak","Leon Noa","Bošnjak Leon Noa","leon bosnjak","one first and last name",1,1.89999999999999,1.16666666666666,"No"]
["7606001699-3","PostojiJMBAG","7606001699","Bošnjak","Leon Noa","Bošnjak Leon Noa","leon bosnjak","one first and last name",3,2.5,1,"No"]
["7606001699-4","PostojiJMBAG","7606001699","Bošnjak","Leon Noa","Bošnjak Leon Noa","leon bosnjak","one first and last name",4,3,2.5,"No"]
["7606001699-6","PostojiJMBAG","7606001699","Bošnjak","Leon Noa","Bošnjak Leon Noa","leon bosnjak","one first and last name",6,3,2.5,"No"]
["7606001699-7","PostojiJMBAG","7606001699","Bošnjak","Leon Noa","Bošnjak Leon Noa","leon bosnjak","one first and last name",7,2.5,1.5,"Yes"]
["7606001699-9","PostojiJMBAG","7606001699","Bošnjak","Leon Noa","Bošnjak Leon Noa","leon bosnjak","one first and last name",9,2.5,1,"No"]
["0023148015-1","PostojiJMBAG","0023148015","Brdar","Toni","Brdar Toni","toni b","reversed username 4",1,null,2.5,"No"]
["0006040459-1","PostojiJMBAG","0006040459","Brigić","Bartol","Brigić Bartol","bartol b","reversed username 4",1,3,0.5,"No"]
["0006040459-3","PostojiJMBAG","0006040459","Brigić","Bartol","Brigić Bartol","bartol brigic","reversed username 4",3,2.6,1.5,"No"]
["0006040459-4","PostojiJMBAG","0006040459","Brigić","Bartol","Brigić Bartol","bartol b","reversed username 4",4,3,3,"Yes"]
["0117225804-1","PostojiJMBAG","0117225804","Briški","Josip","Briški Josip","josipb","reversed username 4",1,2.6,2,"No"]
["0117225804-4","PostojiJMBAG","0117225804","Briški","Josip","Briški Josip","josipb","reversed username 4",4,3,2.5,"Yes"]
["0117225804-5","PostojiJMBAG","0117225804","Briški","Josip","Briški Josip","jbriski","direct",5,3,0.5,"No"]
["0117225804-6","PostojiJMBAG","0117225804","Briški","Josip","Briški Josip","briskij","reversed username 2",6,3,1,"No"]
["0117225804-7","PostojiJMBAG","0117225804","Briški","Josip","Briški Josip","briskij","reversed username 2",7,2,0,"No"]
["7606002927-1","PostojiJMBAG","7606002927","Brletić","Ivan","Brletić Ivan","brletic i","reversed username 2",1,1.9,1.25,"No"]
["7606002927-3","PostojiJMBAG","7606002927","Brletić","Ivan","Brletić Ivan","i brletic","reversed username",3,3,0.5,"No"]
["7606002927-4","PostojiJMBAG","7606002927","Brletić","Ivan","Brletić Ivan","i brletic","reversed username",4,3,2.5,"No"]
["7606002927-5","PostojiJMBAG","7606002927","Brletić","Ivan","Brletić Ivan","i brletic","reversed username",5,1.5,0,"No"]
["7606002927-7","PostojiJMBAG","7606002927","Brletić","Ivan","Brletić Ivan","ibrletic","direct",7,3,1,"No"]
["7606002927-9","PostojiJMBAG","7606002927","Brletić","Ivan","Brletić Ivan","ivan brletic","one first and last name",9,1.5,0,"No"]
["7606000852-1","PostojiJMBAG","7606000852","Bubalo","Jure","Bubalo Jure","jure b","reversed username 4",1,1.5,2.25,"No"]
["7606000852-3","PostojiJMBAG","7606000852","Bubalo","Jure","Bubalo Jure","jure","repeating characters in first name",3,1.3,0.5,"No"]
["7606000852-7","PostojiJMBAG","7606000852","Bubalo","Jure","Bubalo Jure","jure","repeating characters in first name",7,0.4,1.5,"No"]
["7606000852-9","PostojiJMBAG","7606000852","Bubalo","Jure","Bubalo Jure","jure","repeating characters in first name",9,1,0,"No"]
["Ne postoji JMBAG","Bučko Andrej Vladimir-1",null,"Bučko","Andrej Vladimir","Bučko Andrej Vladimir","andrej vladimir","repeating characters in first name",1,1.9,1.5,"No"]
["Ne postoji JMBAG","Bučko Andrej Vladimir-3",null,"Bučko","Andrej Vladimir","Bučko Andrej Vladimir","andrej vladimir","repeating characters in first name",3,1.4,1.25,"No"]
["Ne postoji JMBAG","Bučko Andrej Vladimir-4",null,"Bučko","Andrej Vladimir","Bučko Andrej Vladimir","andrej vladimir","repeating characters in first name",4,3,3,"No"]
["Ne postoji JMBAG","Bučko Andrej Vladimir-5",null,"Bučko","Andrej Vladimir","Bučko Andrej Vladimir","andrej vladimir","repeating characters in first name",5,3,0.5,"No"]
["Ne postoji JMBAG","Bučko Andrej Vladimir-7",null,"Bučko","Andrej Vladimir","Bučko Andrej Vladimir","andrejvladimir","only first name",7,3,1,"No"]
["Ne postoji JMBAG","Bučko Andrej Vladimir-8",null,"Bučko","Andrej Vladimir","Bučko Andrej Vladimir","andrejvladimir","only first name",8,3,2,"No"]
["Ne postoji JMBAG","Bučko Andrej Vladimir-9",null,"Bučko","Andrej Vladimir","Bučko Andrej Vladimir","andrejvladimir","only first name",9,3,2.5,"No"]
["Ne postoji JMBAG","Ciprić Valentino-1",null,"Ciprić","Valentino","Ciprić Valentino","vcipric","reversed username",1,2.3,1.25,"Yes"]
["Ne postoji JMBAG","Ciprić Valentino-3",null,"Ciprić","Valentino","Ciprić Valentino","vcipric","reversed username",3,2.1,0.25,"No"]
["Ne postoji JMBAG","Ciprić Valentino-4",null,"Ciprić","Valentino","Ciprić Valentino","vcipric","reversed username",4,3,2.5,"No"]
["Ne postoji JMBAG","Ciprić Valentino-5",null,"Ciprić","Valentino","Ciprić Valentino","vcipric","reversed username",5,2.3,1,"No"]
["Ne postoji JMBAG","Ciprić Valentino-7",null,"Ciprić","Valentino","Ciprić Valentino","vcipric","reversed username",7,2.5,1.5,"No"]
["Ne postoji JMBAG","Ciprić Valentino-9",null,"Ciprić","Valentino","Ciprić Valentino","vcipric","reversed username",9,2.3,1,"No"]
["Ne postoji JMBAG","Dević Vjeko-1",null,"Dević","Vjeko","Dević Vjeko","vjeko d","reversed username 4",1,2.3,1.75,"No"]
[{"$f":"IF(C131<>\"\",C131&\"-\"& VALUE(I131),\"Ne postoji JMBAG\")","v":"Ne postoji JMBAG"},{"$f":"IF(C131<>\"\",\"PostojiJMBAG\",F131&\"-\"& VALUE(I131))","v":"Dević Vjeko-3"},null,"Dević","Vjeko","Dević Vjeko","vjeko","repeating characters in first name",3,2.8,0,"No"]
["0321028575-1","PostojiJMBAG","0321028575","Domikulić","Luka","Domikulić Luka","luka d","reversed username 4",1,null,2.17,"No"]
["0321028575-3","PostojiJMBAG","0321028575","Domikulić","Luka","Domikulić Luka","luka d","reversed username 4",3,null,0,"No"]
["0321028575-4","PostojiJMBAG","0321028575","Domikulić","Luka","Domikulić Luka","luka d","reversed username 4",4,null,2.25,"No"]
["0321028575-6","PostojiJMBAG","0321028575","Domikulić","Luka","Domikulić Luka","luka d","reversed username 4",6,null,1,"No"]
["0321028575-8","PostojiJMBAG","0321028575","Domikulić","Luka","Domikulić Luka","luka d","reversed username 4",8,null,2,"No"]
["7606002077-1","PostojiJMBAG","7606002077","Donelli","Ian","Donelli Ian","ian donelli","one first and last name",1,3,2.25,"No"]
["7606002077-3","PostojiJMBAG","7606002077","Donelli","Ian","Donelli Ian","ian donelli","one first and last name",3,3,2.75,"No"]
["7606002077-4","PostojiJMBAG","7606002077","Donelli","Ian","Donelli Ian","ian donelli","one first and last name",4,3,3,"No"]
["7606002077-5","PostojiJMBAG","7606002077","Donelli","Ian","Donelli Ian","ian donelli","one first and last name",5,3,1.5,"No"]
["7606002077-6","PostojiJMBAG","7606002077","Donelli","Ian","Donelli Ian","ian donelli","one first and last name",6,3,2,"No"]
["7606002077-7","PostojiJMBAG","7606002077","Donelli","Ian","Donelli Ian","ian donelli","one first and last name",7,3,2,"No"]
["7606002077-9","PostojiJMBAG","7606002077","Donelli","Ian","Donelli Ian","ian donelli","one first and last name",9,3,2,"No"]
["7606001129-1","PostojiJMBAG","7606001129","Estatiev","Jan","Estatiev Jan","jan estatiev","one first and last name",1,2.6,0,"No"]
["7606001129-3","PostojiJMBAG","7606001129","Estatiev","Jan","Estatiev Jan","jan estatiev","one first and last name",3,1.8,0.5,"No"]
["7606001129-4","PostojiJMBAG","7606001129","Estatiev","Jan","Estatiev Jan","jan estatiev","one first and last name",4,1.9,2,"No"]
["7606001129-5","PostojiJMBAG","7606001129","Estatiev","Jan","Estatiev Jan","jan estatiev","one first and last name",5,3,1,"No"]
["7606001129-6","PostojiJMBAG","7606001129","Estatiev","Jan","Estatiev Jan","jan estatiev","one first and last name",6,2.5,2,"No"]
["7606001129-7","PostojiJMBAG","7606001129","Estatiev","Jan","Estatiev Jan","jan estatiev","one first and last name",7,3,1.5,"No"]
["7606001129-9","PostojiJMBAG","7606001129","Estatiev","Jan","Estatiev Jan","jan estatiev","one first and last name",9,3,1.5,"No"]
["1191255436-1","PostojiJMBAG","1191255436","Fernežir","Grga","Fernežir Grga","grga f","reversed username 4",1,2.3,2.5,"No"]
["1191255436-3","PostojiJMBAG","1191255436","Fernežir","Grga","Fernežir Grga","grga f","reversed username 4",3,1.5,1.5,"No"]
["1191255436-4","PostojiJMBAG","1191255436","Fernežir","Grga","Fernežir Grga","grga","repeating characters in first name",4,2.5,3,"No"]
["1191255436-5","PostojiJMBAG","1191255436","Fernežir","Grga","Fernežir Grga","grga f","reversed username 4",5,1.8,0,"No"]
["1191255436-6","PostojiJMBAG","1191255436","Fernežir","Grga","Fernežir Grga","grga f","reversed username 4",6,2.8,1.5,"No"]
["7606001818-1","PostojiJMBAG","7606001818","Filipić","Niko","Filipić Niko","niko filipic","one first and last name",1,3,3,"No"]
["7606001818-3","PostojiJMBAG","7606001818","Filipić","Niko","Filipić Niko","niko filipic","one first and last name",3,3,2.25,"No"]
["7606001818-4","PostojiJMBAG","7606001818","Filipić","Niko","Filipić Niko","niko filipic","one first and last name",4,3,2,"No"]
["7606001818-5","PostojiJMBAG","7606001818","Filipić","Niko","Filipić Niko","niko filipic","one first and last name",5,3,0.5,"No"]
["7606001818-6","PostojiJMBAG","7606001818","Filipić","Niko","Filipić Niko","niko filipic","one first and last name",6,3,3,"No"]
["7606001818-7","PostojiJMBAG","7606001818","Filipić","Niko","Filipić Niko","niko filipic","one first and last name",7,3,1.25,"No"]
["7606001818-9","PostojiJMBAG","7606001818","Filipić","Niko","Filipić Niko","niko filipic","one first and last name",9,3,0.5,"No"]
["7606000665-1","PostojiJMBAG","7606000665","Firšt","Nina","Firšt Nina","nina first","one first and last name",1,2.3,1.25,"No"]
["7606000665-3","PostojiJMBAG","7606000665","Firšt","Nina","Firšt Nina","nina first","repeating characters in first name",3,3,1.16666666666666,"No"]
["7606000665-4","PostojiJMBAG","7606000665","Firšt","Nina","Firšt Nina","nina first","repeating characters in first name",4,3,1,"No"]
["7606000665-5","PostojiJMBAG","7606000665","Firšt","Nina","Firšt Nina","nina first","one first and last name",5,3,1.5,"No"]
["7606000665-6","PostojiJMBAG","7606000665","Firšt","Nina","Firšt Nina","nina first","one first and last name",6,3,2,"No"]
["7606000665-7","PostojiJMBAG","7606000665","Firšt","Nina","Firšt Nina","nina first","repeating characters in first name",7,2.5,1.83333333333333,"No"]
["7606000665-9","PostojiJMBAG","7606000665","Firšt","Nina","Firšt Nina","nina first","repeating characters in first name",9,2.5,0.75,"No"]
["0321020717-1","PostojiJMBAG","0321020717","Fučkala","Filip","Fučkala Filip","filipf","reversed username 4",1,null,1.5,"No"]
["7606001839-1","PostojiJMBAG","7606001839","Gabud","Josip","Gabud Josip","josip gabud","reversed username 2",1,2.6,2.75,"No"]
["7606001839-3","PostojiJMBAG","7606001839","Gabud","Josip","Gabud Josip","josip gabud","one first and last name",3,3,1.5,"No"]
["7606001839-4","PostojiJMBAG","7606001839","Gabud","Josip","Gabud Josip","josip gabud","one first and last name",4,2,1.5,"No"]
["7606001839-9","PostojiJMBAG","7606001839","Gabud","Josip","Gabud Josip","josip gabud","one first and last name",9,1.5,0.5,"No"]
["0067686710-1","PostojiJMBAG","0067686710","Gavrić","Gabriela","Gavrić Gabriela","ggavric","direct",1,null,2.5,"No"]
["0067686710-3","PostojiJMBAG","0067686710","Gavrić","Gabriela","Gavrić Gabriela","ggavric","direct",3,1,0,"No"]
["0067686710-4","PostojiJMBAG","0067686710","Gavrić","Gabriela","Gavrić Gabriela","ggavric","direct",4,2,2,"No"]
["0067686710-7","PostojiJMBAG","0067686710","Gavrić","Gabriela","Gavrić Gabriela","ggavric","direct",7,2.8,0,"No"]
["7606002537-1","PostojiJMBAG","7606002537","Glavaš","Denia","Glavaš Denia","denia g","reversed username 4",1,1.1,0.5,"No"]
["7606002537-3","PostojiJMBAG","7606002537","Glavaš","Denia","Glavaš Denia","denia g","reversed username 4",3,3,1,"No"]
["7606002537-4","PostojiJMBAG","7606002537","Glavaš","Denia","Glavaš Denia","denia g","reversed username 4",4,2.8,0.5,"Yes"]
["7606002537-5","PostojiJMBAG","7606002537","Glavaš","Denia","Glavaš Denia","denia g","reversed username 4",5,1.5,0,"No"]
["7606002537-6","PostojiJMBAG","7606002537","Glavaš","Denia","Glavaš Denia","denia g","reversed username 4",6,3,1.5,"No"]
["7606002537-7","PostojiJMBAG","7606002537","Glavaš","Denia","Glavaš Denia","denia g","reversed username 4",7,2.4,1.5,"No"]
["7606002537-9","PostojiJMBAG","7606002537","Glavaš","Denia","Glavaš Denia","denia g","reversed username 4",9,1.5,0,"No"]
["0321024032-1","PostojiJMBAG","0321024032","Grden","Kristijan","Grden Kristijan","kgrden","direct",1,1.9,0.75,"No"]
["0321024032-2","PostojiJMBAG","0321024032","Grden","Kristijan","Grden Kristijan","kgrden","direct",2,1.4,0,"No"]
["0321024032-6","PostojiJMBAG","0321024032","Grden","Kristijan","Grden Kristijan","kgrden","direct",6,2.8,0,"No"]
["0321024032-7","PostojiJMBAG","0321024032","Grden","Kristijan","Grden Kristijan","kgrden","direct",7,1.5,0,"No"]
["0321025339-2","PostojiJMBAG","0321025339","Grgec","Bruno","Grgec Bruno","bruno grgec","one first and last name",2,null,0,"No"]
["7606003011-1","PostojiJMBAG","7606003011","Grozdek","Bartol","Grozdek Bartol","bartol grozdek","one first and last name",1,0.8,0.5,"No"]
["7606003011-3","PostojiJMBAG","7606003011","Grozdek","Bartol","Grozdek Bartol","bg","*** starts with",3,1.8,0,"Yes"]
["7606003011-5","PostojiJMBAG","7606003011","Grozdek","Bartol","Grozdek Bartol","bg","*** starts with",5,0.5,0,"Yes"]
["Ne postoji JMBAG","Halilagić Vana-1",null,"Halilagić","Vana","Halilagić Vana","vana h","reversed username 4",1,2.6,0.5,"No"]
[{"$f":"IF(C195<>\"\",C195&\"-\"& VALUE(I195),\"Ne postoji JMBAG\")","v":"Ne postoji JMBAG"},{"$f":"IF(C195<>\"\",\"PostojiJMBAG\",F195&\"-\"& VALUE(I195))","v":"Halilagić Vana-3"},null,"Halilagić","Vana","Halilagić Vana","vanah","reversed username 4",3,2.8,0.25,"No"]
["Ne postoji JMBAG","Halilagić Vana-4",null,"Halilagić","Vana","Halilagić Vana","vanah","reversed username 4",4,2,2.5,"No"]
["Ne postoji JMBAG","Halilagić Vana-5",null,"Halilagić","Vana","Halilagić Vana","vanah","reversed username 4",5,3,0,"No"]
["Ne postoji JMBAG","Halilagić Vana-6",null,"Halilagić","Vana","Halilagić Vana","vanah","reversed username 4",6,2.9,1.5,"No"]
["Ne postoji JMBAG","Halilagić Vana-7",null,"Halilagić","Vana","Halilagić Vana","vanah","reversed username 4",7,1.9,0,"No"]
["Ne postoji JMBAG","Halilagić Vana-9",null,"Halilagić","Vana","Halilagić Vana","vanah","reversed username 4",9,2.3,0.5,"No"]
["7606002264-1","PostojiJMBAG","7606002264","Hemen","Antonoela","Hemen Antonoela","antonoela h","reversed username 4",1,1.1,0,"No"]
["7606002264-3","PostojiJMBAG","7606002264","Hemen","Antonoela","Hemen Antonoela","antonoela","repeating characters in first name",3,3,0,"No"]
["7606002264-5","PostojiJMBAG","7606002264","Hemen","Antonoela","Hemen Antonoela","antonoela","repeating characters in first name",5,0.5,0,"No"]
["7606002264-7","PostojiJMBAG","7606002264","Hemen","Antonoela","Hemen Antonoela","antonoela","repeating characters in first name",7,1.2,0.75,"No"]
["7606002264-8","PostojiJMBAG","7606002264","Hemen","Antonoela","Hemen Antonoela","antonoela","repeating characters in first name",8,2.3,1.5,"No"]
["7606002264-9","PostojiJMBAG","7606002264","Hemen","Antonoela","Hemen Antonoela","antonoela","repeating characters in first name",9,2.3,0,"No"]
["7606002173-1","PostojiJMBAG","7606002173","Hodžić","Meris","Hodžić Meris","meris h","reversed username 4",1,2.3,1.5,"No"]
["7606002173-3","PostojiJMBAG","7606002173","Hodžić","Meris","Hodžić Meris","meris h","reversed username 4",3,1.8,0.25,"No"]
["7606002173-4","PostojiJMBAG","7606002173","Hodžić","Meris","Hodžić Meris","meris h","reversed username 4",4,3,2.5,"No"]
["7606002173-5","PostojiJMBAG","7606002173","Hodžić","Meris","Hodžić Meris","meris","repeating characters in first name",5,1.5,0.5,"No"]
["7606002173-7","PostojiJMBAG","7606002173","Hodžić","Meris","Hodžić Meris","meris h","reversed username 4",7,2.5,1.5,"No"]
["7606002173-9","PostojiJMBAG","7606002173","Hodžić","Meris","Hodžić Meris","meris","repeating characters in first name",9,1.8,0,"No"]
["0246098650-1","PostojiJMBAG","0246098650","Horvat","Dominik","Horvat Dominik","horvat d","reversed username 2",1,1.1,0.5,"No"]
["0246098650-5","PostojiJMBAG","0246098650","Horvat","Dominik","Horvat Dominik","dominikh","reversed username 4",5,3,0.5,"No"]
["0246098650-7","PostojiJMBAG","0246098650","Horvat","Dominik","Horvat Dominik","horvatd","reversed username 2",7,1.3,1,"No"]
["0246098650-9","PostojiJMBAG","0246098650","Horvat","Dominik","Horvat Dominik","dominik horvat","one first and last name",9,1.3,0.5,"Yes"]
["7606001480-1","PostojiJMBAG","7606001480","Horvatić","Kristijan","Horvatić Kristijan","k horvatic","reversed username",1,2.6,1.75,"No"]
["7606001480-3","PostojiJMBAG","7606001480","Horvatić","Kristijan","Horvatić Kristijan","kristijan","reversed username",3,3,0.875,"No"]
["7606001480-4","PostojiJMBAG","7606001480","Horvatić","Kristijan","Horvatić Kristijan","k horvatic","reversed username",4,3,3,"No"]
["7606001480-5","PostojiJMBAG","7606001480","Horvatić","Kristijan","Horvatić Kristijan","kristijan","reversed username",5,3,0.5,"No"]
["7606001480-6","PostojiJMBAG","7606001480","Horvatić","Kristijan","Horvatić Kristijan","k horvatic","reversed username",6,3,1.5,"No"]
["7606001480-7","PostojiJMBAG","7606001480","Horvatić","Kristijan","Horvatić Kristijan","k horvatic","reversed username",7,3,2.5,"No"]
["7606001480-9","PostojiJMBAG","7606001480","Horvatić","Kristijan","Horvatić Kristijan","k horvatic","reversed username",9,2.5,1,"No"]
["7606001155-1","PostojiJMBAG","7606001155","Hrnčić","Lovro","Hrnčić Lovro","lhrncic","direct",1,1.5,0.75,"No"]
["7606001155-3","PostojiJMBAG","7606001155","Hrnčić","Lovro","Hrnčić Lovro","lhrncic","direct",3,3,0,"Yes"]
["7606001155-4","PostojiJMBAG","7606001155","Hrnčić","Lovro","Hrnčić Lovro","lhrncic","direct",4,3,3,"No"]
["7606001155-6","PostojiJMBAG","7606001155","Hrnčić","Lovro","Hrnčić Lovro","lhrncic","direct",6,3,1.5,"No"]
["Ne postoji JMBAG","Idžan Petar-1",null,"Idžan","Petar","Idžan Petar","petar i","reversed username 4",1,0.8,0.75,"No"]
["Ne postoji JMBAG","Idžan Petar-3",null,"Idžan","Petar","Idžan Petar","petar i","reversed username 4",3,1.1,0,"No"]
["Ne postoji JMBAG","Idžan Petar-4",null,"Idžan","Petar","Idžan Petar","petar i","reversed username 4",4,2.8,2.5,"No"]
["Ne postoji JMBAG","Idžan Petar-5",null,"Idžan","Petar","Idžan Petar","petar i","reversed username 4",5,1.2,0,"No"]
["Ne postoji JMBAG","Idžan Petar-7",null,"Idžan","Petar","Idžan Petar","petar i","reversed username 4",7,1.8,1.5,"No"]
["Ne postoji JMBAG","Idžan Petar-8",null,"Idžan","Petar","Idžan Petar","petar i","reversed username 4",8,2.4,0,"No"]
["Ne postoji JMBAG","Idžan Petar-9",null,"Idžan","Petar","Idžan Petar","petar i","reversed username 4",9,1.5,0,"Yes"]
["0246120703-3","PostojiJMBAG","0246120703","Ilić","Marin","Ilić Marin","marin i","reversed username 4",3,1.5,0.5,"No"]
["0246120703-5","PostojiJMBAG","0246120703","Ilić","Marin","Ilić Marin","marin i","reversed username 4",5,1.3,0,"No"]
["0246120703-7","PostojiJMBAG","0246120703","Ilić","Marin","Ilić Marin","marin i","reversed username 4",7,null,0,"Yes"]
["0246120703-8","PostojiJMBAG","0246120703","Ilić","Marin","Ilić Marin","marin i","reversed username 4",8,2.5,0,"No"]
["7606002189-1","PostojiJMBAG","7606002189","Ivanišević","Fran","Ivanišević Fran","fivanis","direct",1,0.4,0.5,"No"]
["7606002189-3","PostojiJMBAG","7606002189","Ivanišević","Fran","Ivanišević Fran","fivanis","direct",3,1.8,0,"Yes"]
["7606002558-1","PostojiJMBAG","7606002558","Išić","Jakov","Išić Jakov","jakov i","reversed username 4",1,2.3,0.5,"No"]
["7606002558-2","PostojiJMBAG","7606002558","Išić","Jakov","Išić Jakov","jakov i","reversed username 4",2,2.4,1,"No"]
["7606002558-3","PostojiJMBAG","7606002558","Išić","Jakov","Išić Jakov","jakov i","reversed username 4",3,1.8,0.25,"No"]
["7606002558-5","PostojiJMBAG","7606002558","Išić","Jakov","Išić Jakov","jakov i","reversed username 4",5,1.8,0,"No"]
["7606002558-6","PostojiJMBAG","7606002558","Išić","Jakov","Išić Jakov","jakov i","reversed username 4",6,2.5,0.5,"No"]
["7606002558-7","PostojiJMBAG","7606002558","Išić","Jakov","Išić Jakov","jakov i","reversed username 4",7,1.9,0,"No"]
["7606002558-8","PostojiJMBAG","7606002558","Išić","Jakov","Išić Jakov","jakov i","reversed username 4",8,2.6,0,"No"]
["7606002558-9","PostojiJMBAG","7606002558","Išić","Jakov","Išić Jakov","jakov i","reversed username 4",9,1.8,0,"No"]
["Ne postoji JMBAG","Janković Bruno-1",null,"Janković","Bruno","Janković Bruno","bjankov","direct",1,2.6,2.5,"No"]
["Ne postoji JMBAG","Janković Bruno-3",null,"Janković","Bruno","Janković Bruno","bjankov","direct",3,2.9,0,"No"]
["Ne postoji JMBAG","Janković Bruno-4",null,"Janković","Bruno","Janković Bruno","bjankov","direct",4,3,3,"No"]
["Ne postoji JMBAG","Janković Bruno-5",null,"Janković","Bruno","Janković Bruno","bjankov","direct",5,3,1.5,"No"]
["Ne postoji JMBAG","Janković Bruno-6",null,"Janković","Bruno","Janković Bruno","bjankov","direct",6,3,1.5,"No"]
["Ne postoji JMBAG","Janković Bruno-7",null,"Janković","Bruno","Janković Bruno","bjankov","direct",7,2.8,1,"No"]
["Ne postoji JMBAG","Janković Bruno-9",null,"Janković","Bruno","Janković Bruno","bjankov","direct",9,1.8,2,"No"]
["7606002308-1","PostojiJMBAG","7606002308","Jančić","Lucija","Jančić Lucija","lucija j","reversed username 4",1,1.1,2,"No"]
["7606002308-3","PostojiJMBAG","7606002308","Jančić","Lucija","Jančić Lucija","ljancic","direct",3,2.5,1.5,"No"]
["7606002308-4","PostojiJMBAG","7606002308","Jančić","Lucija","Jančić Lucija","ljancic","direct",4,3,1.5,"No"]
[{"$f":"IF(C259<>\"\",C259&\"-\"& VALUE(I259),\"Ne postoji JMBAG\")","v":"7606002308-5"},{"$f":"IF(C259<>\"\",\"PostojiJMBAG\",F259&\"-\"& VALUE(I259))","v":"PostojiJMBAG"},"7606002308","Jančić","Lucija","Jančić Lucija","ljancic","direct",5,2.5,1,"No"]
["7606002308-7","PostojiJMBAG","7606002308","Jančić","Lucija","Jančić Lucija","ljancic","direct",7,2,0,"No"]
["7606002308-8","PostojiJMBAG","7606002308","Jančić","Lucija","Jančić Lucija","ljancic","direct",8,2.6,2,"No"]
["7606002308-9","PostojiJMBAG","7606002308","Jančić","Lucija","Jančić Lucija","ljancic","direct",9,1,0.5,"No"]
["7606002579-1","PostojiJMBAG","7606002579","Jergović","Luka","Jergović Luka","luka jergovic","one first and last name",1,2.6,2,"No"]
["7606002579-3","PostojiJMBAG","7606002579","Jergović","Luka","Jergović Luka","luka jergovic","one first and last name",3,3,0.5,"No"]
["7606002579-4","PostojiJMBAG","7606002579","Jergović","Luka","Jergović Luka","luka jergovic","one first and last name",4,3,3,"No"]
["7606002579-5","PostojiJMBAG","7606002579","Jergović","Luka","Jergović Luka","luka jergovic","one first and last name",5,2.5,0,"No"]
["7606002579-6","PostojiJMBAG","7606002579","Jergović","Luka","Jergović Luka","luka jergovic","one first and last name",6,3,1.5,"No"]
["7606002579-7","PostojiJMBAG","7606002579","Jergović","Luka","Jergović Luka","luka jergovic","one first and last name",7,3,1,"No"]
["7606002579-9","PostojiJMBAG","7606002579","Jergović","Luka","Jergović Luka","luka jergovic","one first and last name",9,3,0.5,"Yes"]
["0321029364-1","PostojiJMBAG","0321029364","Jin","Iljin","Jin Iljin","jin","only last name",1,3,1.5,"No"]
["0321029364-2","PostojiJMBAG","0321029364","Jin","Iljin","Jin Iljin","jin","only last name",2,3,1.5,"No"]
["0321029364-3","PostojiJMBAG","0321029364","Jin","Iljin","Jin Iljin","jin","only last name",3,3,1.25,"No"]
["0321029364-5","PostojiJMBAG","0321029364","Jin","Iljin","Jin Iljin","jin","only last name",5,2.5,1,"No"]
["0321029364-6","PostojiJMBAG","0321029364","Jin","Iljin","Jin Iljin","jin","only last name",6,3,2.5,"No"]
["0321029364-7","PostojiJMBAG","0321029364","Jin","Iljin","Jin Iljin","jin","only last name",7,3,1,"No"]
["0321029364-8","PostojiJMBAG","0321029364","Jin","Iljin","Jin Iljin","jin","only last name",8,3,3,"Yes"]
["0321029364-9","PostojiJMBAG","0321029364","Jin","Iljin","Jin Iljin","jin","only last name",9,3,1.5,"No"]
["7606000894-3","PostojiJMBAG","7606000894","Jonak","Luka","Jonak Luka","ljonak","direct",3,2.4,0,"No"]
["7606002584-1","PostojiJMBAG","7606002584","Jukica","Bartol","Jukica Bartol","bartol j","reversed username 4",1,1.5,2.5,"No"]
["7606002584-3","PostojiJMBAG","7606002584","Jukica","Bartol","Jukica Bartol","bartol j","reversed username 4",3,1.9,1.75,"No"]
["7606002584-4","PostojiJMBAG","7606002584","Jukica","Bartol","Jukica Bartol","jukicab","reversed username 2",4,3,3,"No"]
["7606002584-5","PostojiJMBAG","7606002584","Jukica","Bartol","Jukica Bartol","bartolj","reversed username 4",5,3,0.5,"No"]
["7606002584-6","PostojiJMBAG","7606002584","Jukica","Bartol","Jukica Bartol","bartolj","reversed username 4",6,3,3,"No"]
["7606002584-7","PostojiJMBAG","7606002584","Jukica","Bartol","Jukica Bartol","bartolj","reversed username 4",7,2.8,2.5,"No"]
["7606002584-8","PostojiJMBAG","7606002584","Jukica","Bartol","Jukica Bartol","bartolj","reversed username 4",8,3,1,"No"]
["7606002584-9","PostojiJMBAG","7606002584","Jukica","Bartol","Jukica Bartol","bartolj","reversed username 4",9,3,3,"No"]
["7606001496-1","PostojiJMBAG","7606001496","Jurić","Nikola","Jurić Nikola","nikola j","reversed username 4",1,1,1.75,"No"]
["7606001496-2","PostojiJMBAG","7606001496","Jurić","Nikola","Jurić Nikola","n juric","reversed username",2,1.9,1.5,"No"]
["7606001496-3","PostojiJMBAG","7606001496","Jurić","Nikola","Jurić Nikola","n juric","reversed username",3,2,0,"No"]
["7606001496-5","PostojiJMBAG","7606001496","Jurić","Nikola","Jurić Nikola","n juric","reversed username",5,1,0,"No"]
["7606001496-6","PostojiJMBAG","7606001496","Jurić","Nikola","Jurić Nikola","n juric","reversed username",6,2.7,0.5,"No"]
["0066237528-1","PostojiJMBAG","0066237528","Kandučar","Teo","Kandučar Teo","teo kanducar","one first and last name",1,2.3,0.75,"No"]
["0066237528-2","PostojiJMBAG","0066237528","Kandučar","Teo","Kandučar Teo","teo kanducar","one first and last name",2,2,0.5,"No"]
["9999001830-1","PostojiJMBAG","9999001830","Kačić-Bartulović","Bariša","Kačić-Bartulović Bariša","bkacicb","direct",1,null,1.5,"No"]
["0321026406-1","PostojiJMBAG","0321026406","Kipa","Josip","Kipa Josip","jkipa","direct",1,null,0,"Yes"]
["7606001503-1","PostojiJMBAG","7606001503","Klopić","Dino","Klopić Dino","dino klopic","one first and last name",1,1.9,1.75,"No"]
["7606001503-4","PostojiJMBAG","7606001503","Klopić","Dino","Klopić Dino","dino klopic","one first and last name",4,2,2.5,"No"]
["Ne postoji JMBAG","Kolarek Jana-1",null,"Kolarek","Jana","Kolarek Jana","jkolarek","direct",1,0.4,0.5,"No"]
["Ne postoji JMBAG","Kolarek Jana-3",null,"Kolarek","Jana","Kolarek Jana","jkolarek","direct",3,1.6,0.25,"No"]
["Ne postoji JMBAG","Kolarek Jana-4",null,"Kolarek","Jana","Kolarek Jana","jkolarek","direct",4,1.7,1.5,"No"]
["Ne postoji JMBAG","Kolarek Jana-5",null,"Kolarek","Jana","Kolarek Jana","jkolarek","direct",5,1,2,"No"]
["Ne postoji JMBAG","Komazec Dean-1",null,"Komazec","Dean","Komazec Dean","dean k","reversed username 4",1,null,0,"No"]
["Ne postoji JMBAG","Kordić Sara-3",null,"Kordić","Sara","Kordić Sara","sara","repeating characters in first name",3,1,0,"No"]
["Ne postoji JMBAG","Kordić Sara-5",null,"Kordić","Sara","Kordić Sara","sara","repeating characters in first name",5,0.8,0.25,"No"]
["Ne postoji JMBAG","Kordić Sara-7",null,"Kordić","Sara","Kordić Sara","sara","repeating characters in first name",7,1,0,"No"]
["7606001524-1","PostojiJMBAG","7606001524","Kostelac","Bruno","Kostelac Bruno","bruno k","reversed username 4",1,2.3,2,"No"]
["7606001524-3","PostojiJMBAG","7606001524","Kostelac","Bruno","Kostelac Bruno","bkostelac","reversed username",3,1.3,0,"Yes"]
["7606001524-4","PostojiJMBAG","7606001524","Kostelac","Bruno","Kostelac Bruno","bkostelac","reversed username",4,1.8,3,"No"]
["7606001524-5","PostojiJMBAG","7606001524","Kostelac","Bruno","Kostelac Bruno","bkostelac","reversed username",5,2,1,"No"]
["7606001524-6","PostojiJMBAG","7606001524","Kostelac","Bruno","Kostelac Bruno","bruno kostelac","one first and last name",6,3,2,"No"]
["7606001524-7","PostojiJMBAG","7606001524","Kostelac","Bruno","Kostelac Bruno","bruno kostelac","one first and last name",7,1.6,2.25,"No"]
["7606001524-8","PostojiJMBAG","7606001524","Kostelac","Bruno","Kostelac Bruno","bruno kostelac","one first and last name",8,2.3,1,"No"]
["7606001524-9","PostojiJMBAG","7606001524","Kostelac","Bruno","Kostelac Bruno","bruno kostelac","one first and last name",9,2.5,0,"No"]
["Ne postoji JMBAG","Kovaček Ivor-1",null,"Kovaček","Ivor","Kovaček Ivor","ivork","reversed username 4",1,2.6,2.5,"No"]
["Ne postoji JMBAG","Kovaček Ivor-3",null,"Kovaček","Ivor","Kovaček Ivor","ivork","reversed username 4",3,2.6,1.5,"No"]
["Ne postoji JMBAG","Kovaček Ivor-4",null,"Kovaček","Ivor","Kovaček Ivor","ivork","reversed username 4",4,2,3,"No"]
["Ne postoji JMBAG","Kovaček Ivor-6",null,"Kovaček","Ivor","Kovaček Ivor","ivork","reversed username 4",6,3,0.5,"Yes"]
["Ne postoji JMBAG","Kovaček Ivor-7",null,"Kovaček","Ivor","Kovaček Ivor","ivork","reversed username 4",7,1.9,2,"No"]
["Ne postoji JMBAG","Kovaček Ivor-8",null,"Kovaček","Ivor","Kovaček Ivor","ivork","reversed username 4",8,3,2.5,"No"]
["Ne postoji JMBAG","Kovaček Ivor-9",null,"Kovaček","Ivor","Kovaček Ivor","ivork","reversed username 4",9,2.3,1.5,"Yes"]
["0067685617-1","PostojiJMBAG","0067685617","Kovačevski","Andro Mark","Kovačevski Andro Mark","androk","one first and abbreviated last name",1,1.9,1.5,"No"]
["0067685617-3","PostojiJMBAG","0067685617","Kovačevski","Andro Mark","Kovačevski Andro Mark","andro k","one first and abbreviated last name",3,null,0,"No"]
[{"$f":"IF(C323<>\"\",C323&\"-\"& VALUE(I323),\"Ne postoji JMBAG\")","v":"0067685617-4"},{"$f":"IF(C323<>\"\",\"PostojiJMBAG\",F323&\"-\"& VALUE(I323))","v":"PostojiJMBAG"},"0067685617","Kovačevski","Andro Mark","Kovačevski Andro Mark","andro k","one first and abbreviated last name",4,null,1.5,"No"]
["0067685617-5","PostojiJMBAG","0067685617","Kovačevski","Andro Mark","Kovačevski Andro Mark","androk","one first and abbreviated last name",5,1.1,0,"Yes"]
["0067685617-6","PostojiJMBAG","0067685617","Kovačevski","Andro Mark","Kovačevski Andro Mark","andro k","one first and abbreviated last name",6,2.5,1,"No"]
["0067685617-7","PostojiJMBAG","0067685617","Kovačevski","Andro Mark","Kovačevski Andro Mark","andro k","one first and abbreviated last name",7,1.1,0,"No"]
["0067685617-9","PostojiJMBAG","0067685617","Kovačevski","Andro Mark","Kovačevski Andro Mark","andro k","one first and abbreviated last name",9,3,0,"No"]
["Ne postoji JMBAG","Kralj Tea-1",null,"Kralj","Tea","Kralj Tea","tea k","reversed username 4",1,2.3,1.75,"No"]
["Ne postoji JMBAG","Kralj Tea-3",null,"Kralj","Tea","Kralj Tea","tea k","reversed username 4",3,2.8,2,"No"]
["Ne postoji JMBAG","Kralj Tea-4",null,"Kralj","Tea","Kralj Tea","tea k","reversed username 4",4,3,2.5,"No"]
["Ne postoji JMBAG","Kralj Tea-5",null,"Kralj","Tea","Kralj Tea","tea k","reversed username 4",5,2.5,1,"Yes"]
["Ne postoji JMBAG","Kralj Tea-6",null,"Kralj","Tea","Kralj Tea","tea k","reversed username 4",6,3,2.5,"No"]
["0035223092-3","PostojiJMBAG","0035223092","Kranjec","Andre Phillip","Kranjec Andre Phillip","andre k","one first and abbreviated last name",3,null,0,"No"]
["0035223092-4","PostojiJMBAG","0035223092","Kranjec","Andre Phillip","Kranjec Andre Phillip","andre k","one first and abbreviated last name",4,null,1.5,"No"]
["0035242273-1","PostojiJMBAG","0035242273","Krapec","Karlo","Krapec Karlo","kkrapec","one first and last name",1,2.3,1.33333333333333,"No"]
["0035242273-3","PostojiJMBAG","0035242273","Krapec","Karlo","Krapec Karlo","kkrapec","direct",3,2.4,1.75,"No"]
["0035242273-5","PostojiJMBAG","0035242273","Krapec","Karlo","Krapec Karlo","kkrapec","direct",5,2.8,0.5,"No"]
["0321022940-1","PostojiJMBAG","0321022940","Krilić","Baltazar","Krilić Baltazar","baltazar","repeating characters in first name",1,1.9,0.5,"No"]
["0321022940-7","PostojiJMBAG","0321022940","Krilić","Baltazar","Krilić Baltazar","baltazar","repeating characters in first name",7,0.9,0,"No"]
["Ne postoji JMBAG","Kulušić Maro-1",null,"Kulušić","Maro","Kulušić Maro","maro kulusic","reversed username 4",1,1.9,1,"No"]
["Ne postoji JMBAG","Kulušić Maro-3",null,"Kulušić","Maro","Kulušić Maro","maro kulusic","reversed username 4",3,1.3,0.5,"No"]
["Ne postoji JMBAG","Kulušić Maro-4",null,"Kulušić","Maro","Kulušić Maro","maro kulusic","one first and last name",4,1.9,1.5,"No"]
["Ne postoji JMBAG","Kulušić Maro-5",null,"Kulušić","Maro","Kulušić Maro","maro k","reversed username 4",5,1.3,0,"No"]
["Ne postoji JMBAG","Kulušić Maro-7",null,"Kulušić","Maro","Kulušić Maro","maro k","reversed username 4",7,0.9,0.25,"No"]
["7606000574-1","PostojiJMBAG","7606000574","Kvasha","Myroslava","Kvasha Myroslava","myroslava k","reversed username 4",1,3,1.75,"No"]
["7606000574-2","PostojiJMBAG","7606000574","Kvasha","Myroslava","Kvasha Myroslava","myroslava k","reversed username 4",2,3,2.5,"No"]
["7606000574-3","PostojiJMBAG","7606000574","Kvasha","Myroslava","Kvasha Myroslava","myroslava k","reversed username 4",3,3,1.75,"No"]
["7606000574-5","PostojiJMBAG","7606000574","Kvasha","Myroslava","Kvasha Myroslava","myroslava k","reversed username 4",5,3,2,"No"]
["7606000574-6","PostojiJMBAG","7606000574","Kvasha","Myroslava","Kvasha Myroslava","myroslava k","reversed username 4",6,3,3,"No"]
["7606000574-7","PostojiJMBAG","7606000574","Kvasha","Myroslava","Kvasha Myroslava","myroslava k","reversed username 4",7,3,1.25,"No"]
["7606000574-9","PostojiJMBAG","7606000574","Kvasha","Myroslava","Kvasha Myroslava","myroslava k","reversed username 4",9,3,1,"No"]
["0248084259-1","PostojiJMBAG","0248084259","Lacković","Josip","Lacković Josip","josip l","reversed username 4",1,2.3,1.5,"No"]
["0248084259-3","PostojiJMBAG","0248084259","Lacković","Josip","Lacković Josip","josip l","reversed username 4",3,1.5,1.5,"No"]
["0248084259-4","PostojiJMBAG","0248084259","Lacković","Josip","Lacković Josip","josip l","reversed username 4",4,1.8,1,"No"]
["0248084259-6","PostojiJMBAG","0248084259","Lacković","Josip","Lacković Josip","josip l","reversed username 4",6,2,0.5,"No"]
["Ne postoji JMBAG","Lacković Matija-1",null,"Lacković","Matija","Lacković Matija","matija l","reversed username 4",1,2.3,2.25,"No"]
["Ne postoji JMBAG","Lacković Matija-3",null,"Lacković","Matija","Lacković Matija","m lackovic","reversed username",3,3,0.5,"No"]
["Ne postoji JMBAG","Lacković Matija-4",null,"Lacković","Matija","Lacković Matija","matija lackovic","one first and last name",4,3,3,"No"]
["Ne postoji JMBAG","Lacković Matija-6",null,"Lacković","Matija","Lacković Matija","m lackovic","reversed username",6,null,1.5,"No"]
["Ne postoji JMBAG","Lacković Matija-7",null,"Lacković","Matija","Lacković Matija","m lackovic","reversed username",7,null,0.5,"Yes"]
["0321029408-1","PostojiJMBAG","0321029408","Laussu","Gabin Louis Charles","Laussu Gabin Louis Charles","gabinl","one first and abbreviated last name",1,1.3,1.25,"Yes"]
["0321029408-2","PostojiJMBAG","0321029408","Laussu","Gabin Louis Charles","Laussu Gabin Louis Charles","gabinl","one first and abbreviated last name",2,2.7,0,"No"]
["0321029408-3","PostojiJMBAG","0321029408","Laussu","Gabin Louis Charles","Laussu Gabin Louis Charles","gabinl","one first and abbreviated last name",3,2.8,0,"Yes"]
["7606002841-1","PostojiJMBAG","7606002841","Lončar","Marko","Lončar Marko","marko l","reversed username 4",1,1.5,1.5,"Yes"]
["7606002841-3","PostojiJMBAG","7606002841","Lončar","Marko","Lončar Marko","marko loncar","one first and last name",3,1.9,1.5,"No"]
["7606002841-4","PostojiJMBAG","7606002841","Lončar","Marko","Lončar Marko","marko l","reversed username 4",4,1.9,1.5,"No"]
["7606002841-5","PostojiJMBAG","7606002841","Lončar","Marko","Lončar Marko","marko l","reversed username 4",5,1.4,0.5,"No"]
["7606002841-6","PostojiJMBAG","7606002841","Lončar","Marko","Lončar Marko","marko loncar","one first and last name",6,2.5,2.5,"No"]
["7606002841-7","PostojiJMBAG","7606002841","Lončar","Marko","Lončar Marko","marko l","reversed username 4",7,null,0.5,"No"]
["7606002841-9","PostojiJMBAG","7606002841","Lončar","Marko","Lončar Marko","marko loncar","one first and last name",9,2.5,0,"No"]
["Ne postoji JMBAG","Lovrić Sofia-1",null,"Lovrić","Sofia","Lovrić Sofia","sofia","repeating characters in first name",1,1.1,0.75,"No"]
["Ne postoji JMBAG","Lovrić Sofia-3",null,"Lovrić","Sofia","Lovrić Sofia","sofia","repeating characters in first name",3,2.3,1.5,"No"]
["Ne postoji JMBAG","Lovrić Sofia-4",null,"Lovrić","Sofia","Lovrić Sofia","sofia","repeating characters in first name",4,1.8,2,"No"]
["Ne postoji JMBAG","Lukač Julian Antony-1",null,"Lukač","Julian Antony","Lukač Julian Antony","julian l","one first and abbreviated last name",1,0,0.25,"No"]
["Ne postoji JMBAG","Lukač Julian Antony-3",null,"Lukač","Julian Antony","Lukač Julian Antony","julian l","one first and abbreviated last name",3,1,0,"No"]
["Ne postoji JMBAG","Lukač Julian Antony-4",null,"Lukač","Julian Antony","Lukač Julian Antony","julian l","one first and abbreviated last name",4,2.5,3,"No"]
["Ne postoji JMBAG","Lukač Julian Antony-5",null,"Lukač","Julian Antony","Lukač Julian Antony","julian l","one first and abbreviated last name",5,0.8,0,"No"]
["Ne postoji JMBAG","Lukač Julian Antony-6",null,"Lukač","Julian Antony","Lukač Julian Antony","julian l","one first and abbreviated last name",6,1.4,0,"No"]
["Ne postoji JMBAG","Lukač Julian Antony-7",null,"Lukač","Julian Antony","Lukač Julian Antony","julian l","reversed username",7,1,0,"No"]
["Ne postoji JMBAG","Lukač Julian Antony-8",null,"Lukač","Julian Antony","Lukač Julian Antony","julian l","one first and abbreviated last name",8,1.9,1.5,"Yes"]
["Ne postoji JMBAG","Lukač Julian Antony-9",null,"Lukač","Julian Antony","Lukač Julian Antony","julian l","one first and abbreviated last name",9,1.5,0,"Yes"]
["7606001909-1","PostojiJMBAG","7606001909","Macan","Luka","Macan Luka","lmacan1","direct",1,1.9,2,"No"]
["7606001909-3","PostojiJMBAG","7606001909","Macan","Luka","Macan Luka","lmacan","reversed username",3,2.3,0,"No"]
["0135248178-1","PostojiJMBAG","0135248178","Majkovčan","Karlo","Majkovčan Karlo","majkovcan k","reversed username 2",1,1.5,1.5,"No"]
["7606004087-1","PostojiJMBAG","7606004087","Maras","Mihael","Maras Mihael","mihael m","reversed username 4",1,0.8,0.5,"No"]
["7606004087-4","PostojiJMBAG","7606004087","Maras","Mihael","Maras Mihael","mihael m","reversed username 4",4,2,1.25,"No"]
[{"$f":"IF(C387<>\"\",C387&\"-\"& VALUE(I387),\"Ne postoji JMBAG\")","v":"7606000922-1"},{"$f":"IF(C387<>\"\",\"PostojiJMBAG\",F387&\"-\"& VALUE(I387))","v":"PostojiJMBAG"},"7606000922","Marić","Josip","Marić Josip","josip maric","one first and last name",1,2.3,1.25,"No"]
["7606000922-3","PostojiJMBAG","7606000922","Marić","Josip","Marić Josip","josip maric","one first and last name",3,1.5,0.5,"No"]
["7606000922-4","PostojiJMBAG","7606000922","Marić","Josip","Marić Josip","josip maric","one first and last name",4,3,2.5,"No"]
["7606000922-5","PostojiJMBAG","7606000922","Marić","Josip","Marić Josip","josip maric","one first and last name",5,3,0,"No"]
["7606000922-6","PostojiJMBAG","7606000922","Marić","Josip","Marić Josip","josip maric","one first and last name",6,2.8,2,"No"]
["7606000922-7","PostojiJMBAG","7606000922","Marić","Josip","Marić Josip","josip maric","one first and last name",7,3,1.25,"No"]
["7606000922-9","PostojiJMBAG","7606000922","Marić","Josip","Marić Josip","josip maric","one first and last name",9,3,0,"No"]
["Ne postoji JMBAG","Marić Lovro-1",null,"Marić","Lovro","Marić Lovro","lovro m","reversed username 4",1,2.6,1.75,"No"]
["Ne postoji JMBAG","Marić Lovro-3",null,"Marić","Lovro","Marić Lovro","lovro maric","one first and last name",3,2.5,1.25,"No"]
["Ne postoji JMBAG","Marić Lovro-4",null,"Marić","Lovro","Marić Lovro","lovro m","reversed username 4",4,3,2.5,"No"]
["Ne postoji JMBAG","Marić Lovro-5",null,"Marić","Lovro","Marić Lovro","lovro maric","one first and last name",5,2.5,0,"No"]
["Ne postoji JMBAG","Marić Lovro-7",null,"Marić","Lovro","Marić Lovro","lovro m","reversed username 4",7,2.9,1,"No"]
["7606001225-1","PostojiJMBAG","7606001225","Marić","Matija","Marić Matija","matija maric","one first and last name",1,1.5,1.25,"No"]
["7606001225-3","PostojiJMBAG","7606001225","Marić","Matija","Marić Matija","matija maric","one first and last name",3,2.8,0.5,"No"]
["7606001225-4","PostojiJMBAG","7606001225","Marić","Matija","Marić Matija","matija maric","one first and last name",4,2,2,"No"]
["7606001225-5","PostojiJMBAG","7606001225","Marić","Matija","Marić Matija","matija maric","one first and last name",5,2.5,0,"No"]
["7606001225-6","PostojiJMBAG","7606001225","Marić","Matija","Marić Matija","matija maric","one first and last name",6,2.6,1,"No"]
["7606001225-7","PostojiJMBAG","7606001225","Marić","Matija","Marić Matija","matija maric","one first and last name",7,3,0.5,"No"]
["7606001225-9","PostojiJMBAG","7606001225","Marić","Matija","Marić Matija","matija maric","one first and last name",9,3,0,"No"]
["Ne postoji JMBAG","Marković Ivan-1",null,"Marković","Ivan","Marković Ivan","ivan markovic","one first and last name",1,0.8,0.5,"No"]
["0246105792-1","PostojiJMBAG","0246105792","Maršić","Matej","Maršić Matej","mmarsic","direct",1,2.6,3,"No"]
["0246105792-3","PostojiJMBAG","0246105792","Maršić","Matej","Maršić Matej","mmarsic","direct",3,1.1,1,"No"]
["0246105792-4","PostojiJMBAG","0246105792","Maršić","Matej","Maršić Matej","mmarsic","direct",4,3,2.5,"No"]
["0246105792-5","PostojiJMBAG","0246105792","Maršić","Matej","Maršić Matej","mmarsic","direct",5,null,0,"No"]
["0246105792-6","PostojiJMBAG","0246105792","Maršić","Matej","Maršić Matej","mmarsic","direct",6,0.9,0,"No"]
["0246105792-9","PostojiJMBAG","0246105792","Maršić","Matej","Maršić Matej","mmarsic","direct",9,null,0,"No"]
["7606003742-3","PostojiJMBAG","7606003742","Matas","Noa","Matas Noa","nmatas","reversed username",3,3,1.75,"No"]
["7606003742-4","PostojiJMBAG","7606003742","Matas","Noa","Matas Noa","n matas","reversed username",4,3,3,"No"]
["7606003742-5","PostojiJMBAG","7606003742","Matas","Noa","Matas Noa","n matas","reversed username",5,3,2,"No"]
["7606003742-6","PostojiJMBAG","7606003742","Matas","Noa","Matas Noa","n matas","reversed username",6,3,3,"No"]
["7606003742-7","PostojiJMBAG","7606003742","Matas","Noa","Matas Noa","n matas","reversed username",7,3,2.5,"No"]
["7606003742-8","PostojiJMBAG","7606003742","Matas","Noa","Matas Noa","n matas","reversed username",8,3,2,"No"]
["7606003742-9","PostojiJMBAG","7606003742","Matas","Noa","Matas Noa","n matas","reversed username",9,3,2,"No"]
["Ne postoji JMBAG","Matić Krešimir-1",null,"Matić","Krešimir","Matić Krešimir","kresimir matic","one first and last name",1,2.3,0.833333333333333,"No"]
["Ne postoji JMBAG","Matić Krešimir-3",null,"Matić","Krešimir","Matić Krešimir","kresimirm","reversed username 4",3,0.8,1.25,"No"]
["Ne postoji JMBAG","Matić Krešimir-4",null,"Matić","Krešimir","Matić Krešimir","kresimir","repeating characters in first name",4,3,0.5,"No"]
["Ne postoji JMBAG","Matić Krešimir-5",null,"Matić","Krešimir","Matić Krešimir","kresimirm","reversed username 4",5,2.5,1.5,"No"]
["Ne postoji JMBAG","Matić Krešimir-7",null,"Matić","Krešimir","Matić Krešimir","kresimirmatic","one first and last name",7,2.9,1,"No"]
["Ne postoji JMBAG","Matić Krešimir-8",null,"Matić","Krešimir","Matić Krešimir","kresimir matic","one first and last name",8,3,2,"No"]
["Ne postoji JMBAG","Matić Krešimir-9",null,"Matić","Krešimir","Matić Krešimir","kresimir matic","one first and last name",9,3,3,"No"]
["7606001363-1","PostojiJMBAG","7606001363","Matić","Noa","Matić Noa","noa m","reversed username 4",1,1.5,1.66666666666666,"No"]
["Ne postoji JMBAG","Miklenić Ivan-3",null,"Miklenić","Ivan","Miklenić Ivan","miklenic","only last name",3,1,0,"No"]
["Ne postoji JMBAG","Miklenić Ivan-5",null,"Miklenić","Ivan","Miklenić Ivan","miklenic","only last name",5,1.5,0,"No"]
["Ne postoji JMBAG","Milašin Jan-1",null,"Milašin","Jan","Milašin Jan","milasin j","reversed username 4",1,2.3,2.25,"No"]
["Ne postoji JMBAG","Milašin Jan-3",null,"Milašin","Jan","Milašin Jan","milasin j","reversed username 4",3,2,0.25,"No"]
["Ne postoji JMBAG","Milašin Jan-4",null,"Milašin","Jan","Milašin Jan","jan m","reversed username 4",4,2,2.5,"No"]
["Ne postoji JMBAG","Milašin Jan-7",null,"Milašin","Jan","Milašin Jan","milasin j","reversed username 2",7,2.3,0.75,"No"]
["Ne postoji JMBAG","Milivojević Hana-1",null,"Milivojević","Hana","Milivojević Hana","hana m","reversed username 4",1,2.3,0.75,"No"]
["Ne postoji JMBAG","Milivojević Hana-2",null,"Milivojević","Hana","Milivojević Hana","hana m","reversed username 4",2,3,1.5,"No"]
["Ne postoji JMBAG","Milivojević Hana-3",null,"Milivojević","Hana","Milivojević Hana","hana m","reversed username 4",3,3,0.25,"No"]
["Ne postoji JMBAG","Milivojević Hana-6",null,"Milivojević","Hana","Milivojević Hana","hana m","reversed username 4",6,2,0,"No"]
["Ne postoji JMBAG","Milivojević Hana-7",null,"Milivojević","Hana","Milivojević Hana","hana m","reversed username 4",7,1.9,0.75,"No"]
["0321025248-4","PostojiJMBAG","0321025248","Miličević","Luka","Miličević Luka","lukam","reversed username 4",4,null,2,"No"]
["0321025248-7","PostojiJMBAG","0321025248","Miličević","Luka","Miličević Luka","lukam","reversed username 4",7,null,0,"No"]
["0321025248-9","PostojiJMBAG","0321025248","Miličević","Luka","Miličević Luka","lukam","reversed username 4",9,null,0,"Yes"]
["0006052243-1","PostojiJMBAG","0006052243","Miličić","Filip","Miličić Filip","filip m","reversed username 4",1,2.7,2,"No"]
["0006052243-2","PostojiJMBAG","0006052243","Miličić","Filip","Miličić Filip","filip m","reversed username 4",2,2.4,2,"No"]
["0006052243-3","PostojiJMBAG","0006052243","Miličić","Filip","Miličić Filip","filip m","reversed username 4",3,2.1,2,"No"]
["0006052243-6","PostojiJMBAG","0006052243","Miličić","Filip","Miličić Filip","filip m","reversed username 4",6,3,1.5,"No"]
["0006052243-7","PostojiJMBAG","0006052243","Miličić","Filip","Miličić Filip","filip m","reversed username 4",7,3,1.5,"No"]
["0006052243-8","PostojiJMBAG","0006052243","Miličić","Filip","Miličić Filip","filip m","reversed username 4",8,3,3,"No"]
["0006052243-9","PostojiJMBAG","0006052243","Miličić","Filip","Miličić Filip","filip m","reversed username 4",9,3,1.5,"No"]
["7606001940-1","PostojiJMBAG","7606001940","Milojević","Leo","Milojević Leo","leo m","reversed username 4",1,3,2.75,"No"]
["7606001940-3","PostojiJMBAG","7606001940","Milojević","Leo","Milojević Leo","leo milojevic","one first and last name",3,2.9,2.5,"No"]
[{"$f":"IF(C451<>\"\",C451&\"-\"& VALUE(I451),\"Ne postoji JMBAG\")","v":"7606001940-4"},{"$f":"IF(C451<>\"\",\"PostojiJMBAG\",F451&\"-\"& VALUE(I451))","v":"PostojiJMBAG"},"7606001940","Milojević","Leo","Milojević Leo","leo milojevic","one first and last name",4,2,3,"No"]
["7606001940-5","PostojiJMBAG","7606001940","Milojević","Leo","Milojević Leo","leo milojevic","one first and last name",5,1.5,0,"No"]
["7606001940-7","PostojiJMBAG","7606001940","Milojević","Leo","Milojević Leo","leo milojevic","one first and last name",7,1.8,1,"No"]
["0115067683-1","PostojiJMBAG","0115067683","Mitrović","Domagoj","Mitrović Domagoj","dmitrov","direct",1,1.1,1.5,"No"]
["0115067683-3","PostojiJMBAG","0115067683","Mitrović","Domagoj","Mitrović Domagoj","dmitrov","direct",3,3,0,"No"]
["0115067683-4","PostojiJMBAG","0115067683","Mitrović","Domagoj","Mitrović Domagoj","dmitrov","direct",4,3,1.5,"No"]
["0115067683-5","PostojiJMBAG","0115067683","Mitrović","Domagoj","Mitrović Domagoj","dmitrov","direct",5,3,0.5,"No"]
["0246118355-1","PostojiJMBAG","0246118355","Mlakar","Fran","Mlakar Fran","fmlakar","direct",1,1.9,2.5,"No"]
["0246118355-3","PostojiJMBAG","0246118355","Mlakar","Fran","Mlakar Fran","fmlakar","direct",3,1.1,0,"No"]
["0246118355-4","PostojiJMBAG","0246118355","Mlakar","Fran","Mlakar Fran","fmlakar","direct",4,2.7,2.5,"No"]
["0246118355-5","PostojiJMBAG","0246118355","Mlakar","Fran","Mlakar Fran","fmlakar","direct",5,2.5,0,"No"]
["0321027994-1","PostojiJMBAG","0321027994","Moguš","Ivan","Moguš Ivan","ivan m","reversed username 4",1,null,1,"No"]
["0321027994-3","PostojiJMBAG","0321027994","Moguš","Ivan","Moguš Ivan","ivan m","reversed username 4",3,null,0,"No"]
["0321027994-4","PostojiJMBAG","0321027994","Moguš","Ivan","Moguš Ivan","ivanm","reversed username 4",4,null,2,"No"]
["0321027994-5","PostojiJMBAG","0321027994","Moguš","Ivan","Moguš Ivan","ivan m","reversed username 4",5,null,0,"No"]
["0321027994-8","PostojiJMBAG","0321027994","Moguš","Ivan","Moguš Ivan","ivanm","reversed username 4",8,null,0.25,"No"]
["Ne postoji JMBAG","Mudrovčić Paolo-1",null,"Mudrovčić","Paolo","Mudrovčić Paolo","pmudrov","direct",1,0.4,0,"Yes"]
["Ne postoji JMBAG","Mudrovčić Paolo-4",null,"Mudrovčić","Paolo","Mudrovčić Paolo","pmudrov","direct",4,1.9,0,"No"]
["Ne postoji JMBAG","Mudrovčić Paolo-5",null,"Mudrovčić","Paolo","Mudrovčić Paolo","pmudrov","direct",5,null,0,"No"]
["Ne postoji JMBAG","Mudrovčić Paolo-6",null,"Mudrovčić","Paolo","Mudrovčić Paolo","pmudrov","direct",6,null,0,"No"]
["0321025594-5","PostojiJMBAG","0321025594","Munka","Leon","Munka Leon","lm","*** starts with",5,null,1,"No"]
["7606002217-1","PostojiJMBAG","7606002217","Nikolić","Mihael","Nikolić Mihael","m nikolic","reversed username",1,1.9,1.25,"No"]
["7606002217-3","PostojiJMBAG","7606002217","Nikolić","Mihael","Nikolić Mihael","mnikolic","reversed username",3,2,0.5,"No"]
["7606002217-4","PostojiJMBAG","7606002217","Nikolić","Mihael","Nikolić Mihael","mnikolic","reversed username",4,1.9,2.5,"No"]
["7606002217-5","PostojiJMBAG","7606002217","Nikolić","Mihael","Nikolić Mihael","mnikolic","reversed username",5,2,0.75,"No"]
["7606002217-6","PostojiJMBAG","7606002217","Nikolić","Mihael","Nikolić Mihael","mihael nikolic","one first and last name",6,2.8,0,"No"]
["7606002217-7","PostojiJMBAG","7606002217","Nikolić","Mihael","Nikolić Mihael","mihael nikolic","one first and last name",7,1.6,0,"No"]
["0067658698-1","PostojiJMBAG","0067658698","Njegić","Ivor","Njegić Ivor","ivor njegic","one first and last name",1,3,1.5,"No"]
["0067658698-3","PostojiJMBAG","0067658698","Njegić","Ivor","Njegić Ivor","njegic","only last name",3,2.4,0,"No"]
["0067658698-4","PostojiJMBAG","0067658698","Njegić","Ivor","Njegić Ivor","ivor njegic","one first and last name",4,1.9,0.5,"No"]
["0119048025-1","PostojiJMBAG","0119048025","Novosel","Maja","Novosel Maja","mnovosel","direct",1,2.3,1.5,"No"]
["0119048025-3","PostojiJMBAG","0119048025","Novosel","Maja","Novosel Maja","maja n","reversed username 4",3,1.5,0.5,"No"]
["0119048025-4","PostojiJMBAG","0119048025","Novosel","Maja","Novosel Maja","mnovosel","direct",4,3,2.5,"No"]
["0119048025-5","PostojiJMBAG","0119048025","Novosel","Maja","Novosel Maja","maja n","reversed username 4",5,0.7,0.25,"No"]
["0119048025-7","PostojiJMBAG","0119048025","Novosel","Maja","Novosel Maja","maja","repeating characters in first name",7,null,0.25,"No"]
["0119048025-9","PostojiJMBAG","0119048025","Novosel","Maja","Novosel Maja","maja","repeating characters in first name",9,0.5,0,"No"]
["7606001251-1","PostojiJMBAG","7606001251","Ohnjec","Noa","Ohnjec Noa","ohnjec n","reversed username 2",1,2.3,1,"No"]
["7606000709-1","PostojiJMBAG","7606000709","Oshytor ","Mariia","Oshytor  Mariia","mariia o","reversed username 4",1,3,1.5,"No"]
["7606000709-2","PostojiJMBAG","7606000709","Oshytor ","Mariia","Oshytor  Mariia","mariia o","reversed username 4",2,2.9,1,"No"]
["7606000709-3","PostojiJMBAG","7606000709","Oshytor ","Mariia","Oshytor  Mariia","mariia o","reversed username 4",3,2.5,1.25,"Yes"]
["7606000709-5","PostojiJMBAG","7606000709","Oshytor ","Mariia","Oshytor  Mariia","mariia o","reversed username 4",5,2.8,1,"No"]
["7606000709-6","PostojiJMBAG","7606000709","Oshytor ","Mariia","Oshytor  Mariia","mariia o","reversed username 4",6,2.9,1.5,"No"]
["7606000709-7","PostojiJMBAG","7606000709","Oshytor ","Mariia","Oshytor  Mariia","mariia","only first name",7,3,0.25,"No"]
["7606000709-8","PostojiJMBAG","7606000709","Oshytor ","Mariia","Oshytor  Mariia","mariia","only first name",8,2,1.5,"No"]
["7606000709-9","PostojiJMBAG","7606000709","Oshytor ","Mariia","Oshytor  Mariia","mariia","only first name",9,3,1.5,"No"]
["Ne postoji JMBAG","Osim Liam Nicholas-1",null,"Osim","Liam Nicholas","Osim Liam Nicholas","liam osim","one first and last name",1,3,0.75,"No"]
["Ne postoji JMBAG","Osim Liam Nicholas-2",null,"Osim","Liam Nicholas","Osim Liam Nicholas","liam osim","one first and last name",2,2.4,0.5,"No"]
["Ne postoji JMBAG","Osim Liam Nicholas-3",null,"Osim","Liam Nicholas","Osim Liam Nicholas","liam osim","one first and last name",3,1.6,0,"No"]
["0321029616-3","PostojiJMBAG","0321029616","Ounich","Nizar Samir","Ounich Nizar Samir","nizaro","one first and abbreviated last name",3,0.8,0,"Yes"]
["0321029616-7","PostojiJMBAG","0321029616","Ounich","Nizar Samir","Ounich Nizar Samir","nizaro","one first and abbreviated last name",7,2.4,0,"No"]
["0321029616-9","PostojiJMBAG","0321029616","Ounich","Nizar Samir","Ounich Nizar Samir","nizar o","one first and abbreviated last name",9,1.5,0,"No"]
["0321023607-3","PostojiJMBAG","0321023607","Pandey","Kunal","Pandey Kunal","kp","*** starts with",3,null,0.5,"No"]
["0195039091-1","PostojiJMBAG","0195039091","Pascuttini","Dominik","Pascuttini Dominik","dpascuttini","reversed username",1,2.6,1,"No"]
["Ne postoji JMBAG","Paunović Patrik-1",null,"Paunović","Patrik","Paunović Patrik","ppaunovic","reversed username",1,0.8,1.5,"No"]
["Ne postoji JMBAG","Paunović Patrik-3",null,"Paunović","Patrik","Paunović Patrik","paunovic","only last name",3,1.5,0,"No"]
["Ne postoji JMBAG","Paunović Patrik-4",null,"Paunović","Patrik","Paunović Patrik","ppaunovic","reversed username",4,2.3,1.75,"No"]
["Ne postoji JMBAG","Paunović Patrik-8",null,"Paunović","Patrik","Paunović Patrik","paunovic","only last name",8,1.6,0.5,"No"]
["7606003186-1","PostojiJMBAG","7606003186","Pavelić","Marko","Pavelić Marko","marko p","reversed username 4",1,1.5,0.5,"Yes"]
["7606003186-3","PostojiJMBAG","7606003186","Pavelić","Marko","Pavelić Marko","markop","reversed username 4",3,0.6,0.5,"No"]
["7606003186-4","PostojiJMBAG","7606003186","Pavelić","Marko","Pavelić Marko","markop","reversed username 4",4,1.4,2.25,"No"]
["7606003186-5","PostojiJMBAG","7606003186","Pavelić","Marko","Pavelić Marko","markop","reversed username 4",5,0.4,1.5,"Yes"]
["7606003186-6","PostojiJMBAG","7606003186","Pavelić","Marko","Pavelić Marko","markop","reversed username 4",6,0.9,0,"Yes"]
["7606003186-7","PostojiJMBAG","7606003186","Pavelić","Marko","Pavelić Marko","markop","reversed username 4",7,0.1,1,"No"]
["7606003186-8","PostojiJMBAG","7606003186","Pavelić","Marko","Pavelić Marko","markop","reversed username 4",8,null,0,"Yes"]
[{"$f":"IF(C515<>\"\",C515&\"-\"& VALUE(I515),\"Ne postoji JMBAG\")","v":"7606002696-1"},{"$f":"IF(C515<>\"\",\"PostojiJMBAG\",F515&\"-\"& VALUE(I515))","v":"PostojiJMBAG"},"7606002696","Pavić","Viktor","Pavić Viktor","viktor p","reversed username 4",1,0.4,1.5,"No"]
["7606002696-3","PostojiJMBAG","7606002696","Pavić","Viktor","Pavić Viktor","viktor p","reversed username 4",3,2.5,1.75,"Yes"]
["7606002696-4","PostojiJMBAG","7606002696","Pavić","Viktor","Pavić Viktor","vpavic","reversed username",4,2,2,"No"]
["7606002696-5","PostojiJMBAG","7606002696","Pavić","Viktor","Pavić Viktor","viktor p","reversed username 4",5,null,1,"Yes"]
["7606002696-6","PostojiJMBAG","7606002696","Pavić","Viktor","Pavić Viktor","v pavic","reversed username",6,2,1,"No"]
["7606002696-7","PostojiJMBAG","7606002696","Pavić","Viktor","Pavić Viktor","vpavic","reversed username",7,1.8,0.5,"Yes"]
["Ne postoji JMBAG","Pavlović Marin-1",null,"Pavlović","Marin","Pavlović Marin","marin p","reversed username 4",1,1.9,0.5,"No"]
["Ne postoji JMBAG","Pavlović Marin-3",null,"Pavlović","Marin","Pavlović Marin","marinp","reversed username 4",3,2.5,0.25,"Yes"]
["Ne postoji JMBAG","Pavlović Marin-4",null,"Pavlović","Marin","Pavlović Marin","pavlovicm","reversed username 4",4,2.8,2.25,"No"]
["Ne postoji JMBAG","Pavlović Marin-5",null,"Pavlović","Marin","Pavlović Marin","marinp","reversed username 4",5,2,2.5,"No"]
["Ne postoji JMBAG","Pavlović Marin-6",null,"Pavlović","Marin","Pavlović Marin","marinp","reversed username 4",6,2.5,0.5,"No"]
["Ne postoji JMBAG","Pavlović Marin-7",null,"Pavlović","Marin","Pavlović Marin","marinp","reversed username 4",7,2,1,"No"]
["Ne postoji JMBAG","Pavlović Marin-8",null,"Pavlović","Marin","Pavlović Marin","marinp","reversed username 4",8,2.8,1.5,"No"]
["Ne postoji JMBAG","Pavlović Marin-9",null,"Pavlović","Marin","Pavlović Marin","marinp","reversed username 4",9,1.8,0,"No"]
["0321027258-1","PostojiJMBAG","0321027258","Pašić","Jasmin","Pašić Jasmin","jasmin","repeating characters in first name",1,1.9,1,"No"]
["0321023131-1","PostojiJMBAG","0321023131","Pekez","Antonio","Pekez Antonio","antoniop","reversed username 4",1,null,0.5,"No"]
["0321023131-2","PostojiJMBAG","0321023131","Pekez","Antonio","Pekez Antonio","antoniop","reversed username 4",2,null,0.5,"No"]
["0321023131-7","PostojiJMBAG","0321023131","Pekez","Antonio","Pekez Antonio","antonio","repeating characters in first name",7,null,0.25,"No"]
["Ne postoji JMBAG","Peroš Luka-1",null,"Peroš","Luka","Peroš Luka","peros l","reversed username 2",1,2.3,1.5,"Yes"]
["Ne postoji JMBAG","Peroš Luka-3",null,"Peroš","Luka","Peroš Luka","peros l","reversed username 2",3,1.8,0.5,"No"]
["Ne postoji JMBAG","Peroš Luka-4",null,"Peroš","Luka","Peroš Luka","peros l","reversed username 2",4,2.8,2.75,"Yes"]
["Ne postoji JMBAG","Peroš Luka-6",null,"Peroš","Luka","Peroš Luka","peros l","reversed username 2",6,2.3,1,"No"]
["Ne postoji JMBAG","Peroš Luka-7",null,"Peroš","Luka","Peroš Luka","peros l","reversed username 2",7,2.3,1.5,"No"]
["7606002126-1","PostojiJMBAG","7606002126","Petan","Josip","Petan Josip","josip p","reversed username 4",1,2.6,2.5,"No"]
["7606002126-3","PostojiJMBAG","7606002126","Petan","Josip","Petan Josip","petan j","reversed username 2",3,2,0.5,"No"]
["7606002126-4","PostojiJMBAG","7606002126","Petan","Josip","Petan Josip","josip p","reversed username 4",4,3,2.5,"No"]
["7606002126-5","PostojiJMBAG","7606002126","Petan","Josip","Petan Josip","petan j","reversed username 2",5,2.5,0,"No"]
["7606002126-7","PostojiJMBAG","7606002126","Petan","Josip","Petan Josip","petan j","reversed username 4",7,3,0.75,"Yes"]
["7606002126-9","PostojiJMBAG","7606002126","Petan","Josip","Petan Josip","petan j","reversed username 2",9,1,0,"No"]
["0321023168-1","PostojiJMBAG","0321023168","Petanjek","Mario","Petanjek Mario","mpetan","*** starts with",1,2.3,1.5,"No"]
["0130329630-1","PostojiJMBAG","0130329630","Petek","Filip","Petek Filip","filip petek","one first and last name",1,2.6,2.5,"Yes"]
["0130329630-3","PostojiJMBAG","0130329630","Petek","Filip","Petek Filip","filip petek","one first and last name",3,2.9,1.5,"No"]
["0130329630-4","PostojiJMBAG","0130329630","Petek","Filip","Petek Filip","filip petek","one first and last name",4,2,3,"Yes"]
["0130329630-5","PostojiJMBAG","0130329630","Petek","Filip","Petek Filip","filip petek","one first and last name",5,2,2.5,"No"]
["0130329630-7","PostojiJMBAG","0130329630","Petek","Filip","Petek Filip","filip petek","one first and last name",7,null,2,"No"]
["0130329630-8","PostojiJMBAG","0130329630","Petek","Filip","Petek Filip","filip p","reversed username 4",8,2.8,2.5,"No"]
["0066255652-3","PostojiJMBAG","0066255652","Petković","Matija","Petković Matija","matijap","reversed username 4",3,null,1,"No"]
["0066255652-7","PostojiJMBAG","0066255652","Petković","Matija","Petković Matija","matija","repeating characters in first name",7,null,0.5,"No"]
["0066255652-9","PostojiJMBAG","0066255652","Petković","Matija","Petković Matija","matija","repeating characters in first name",9,3,0,"No"]
["7606002703-1","PostojiJMBAG","7606002703","Pintar","Jan","Pintar Jan","jan pintar","one first and last name",1,2.6,2,"No"]
["7606002703-3","PostojiJMBAG","7606002703","Pintar","Jan","Pintar Jan","jan pintar","one first and last name",3,3,1.25,"No"]
["7606002703-4","PostojiJMBAG","7606002703","Pintar","Jan","Pintar Jan","jan pintar","one first and last name",4,3,3,"No"]
["7606002703-5","PostojiJMBAG","7606002703","Pintar","Jan","Pintar Jan","jan pintar","one first and last name",5,null,1.5,"No"]
["7606002703-6","PostojiJMBAG","7606002703","Pintar","Jan","Pintar Jan","jan pintar","one first and last name",6,2.9,1,"No"]
["7606002703-7","PostojiJMBAG","7606002703","Pintar","Jan","Pintar Jan","jan pintar","one first and last name",7,3,2,"No"]
["7606002703-9","PostojiJMBAG","7606002703","Pintar","Jan","Pintar Jan","jan pintar","one first and last name",9,3,1,"Yes"]
["7606000964-1","PostojiJMBAG","7606000964","Podhraški","Karlo","Podhraški Karlo","karlo podhraski","reversed username 4",1,2.6,0.5,"No"]
["7606000964-3","PostojiJMBAG","7606000964","Podhraški","Karlo","Podhraški Karlo","karlop","reversed username 4",3,1.1,0.75,"No"]
["7606000964-4","PostojiJMBAG","7606000964","Podhraški","Karlo","Podhraški Karlo","karlop","reversed username 4",4,2.5,1.5,"No"]
["7606000964-5","PostojiJMBAG","7606000964","Podhraški","Karlo","Podhraški Karlo","karlop","reversed username 4",5,2.3,0.5,"No"]
["7606000964-7","PostojiJMBAG","7606000964","Podhraški","Karlo","Podhraški Karlo","karlop","reversed username 4",7,3,0,"No"]
["7606000964-8","PostojiJMBAG","7606000964","Podhraški","Karlo","Podhraški Karlo","karlop","reversed username 4",8,2.8,1.5,"No"]
["7606000964-9","PostojiJMBAG","7606000964","Podhraški","Karlo","Podhraški Karlo","karlop","reversed username 4",9,2.5,0,"No"]
["0321021852-3","PostojiJMBAG","0321021852","Poljanić","Luka","Poljanić Luka","luuka","repeating characters in first name",3,null,0.75,"No"]
["0321021852-5","PostojiJMBAG","0321021852","Poljanić","Luka","Poljanić Luka","luka","repeating characters in first name",5,null,1,"No"]
["7606003630-1","PostojiJMBAG","7606003630","Pralas","Helena","Pralas Helena","helena p","reversed username 4",1,2.3,1.5,"No"]
["7606003630-3","PostojiJMBAG","7606003630","Pralas","Helena","Pralas Helena","pralas","only last name",3,2.5,0,"No"]
["7606003630-4","PostojiJMBAG","7606003630","Pralas","Helena","Pralas Helena","pralas","only last name",4,3,2.5,"No"]
["7606003630-5","PostojiJMBAG","7606003630","Pralas","Helena","Pralas Helena","pralas","only last name",5,1.5,0,"No"]
["7606003630-7","PostojiJMBAG","7606003630","Pralas","Helena","Pralas Helena","pralas","only last name",7,1.3,0.75,"No"]
["7606003630-8","PostojiJMBAG","7606003630","Pralas","Helena","Pralas Helena","pralas","only last name",8,2.8,0,"No"]
["0246097008-1","PostojiJMBAG","0246097008","Pranjić","Ivan","Pranjić Ivan","ivan pranjic","one first and last name",1,2.3,2,"No"]
["0246097008-3","PostojiJMBAG","0246097008","Pranjić","Ivan","Pranjić Ivan","ivan pranjic","one first and last name",3,2.5,1.5,"No"]
["0246097008-4","PostojiJMBAG","0246097008","Pranjić","Ivan","Pranjić Ivan","ivan pranjic","one first and last name",4,2,2,"No"]
[{"$f":"IF(C579<>\"\",C579&\"-\"& VALUE(I579),\"Ne postoji JMBAG\")","v":"0246097008-5"},{"$f":"IF(C579<>\"\",\"PostojiJMBAG\",F579&\"-\"& VALUE(I579))","v":"PostojiJMBAG"},"0246097008","Pranjić","Ivan","Pranjić Ivan","ivan pranjic","one first and last name",5,2.5,1,"Yes"]
["0246097008-7","PostojiJMBAG","0246097008","Pranjić","Ivan","Pranjić Ivan","ivan pranjic","one first and last name",7,2.4,0.25,"No"]
["0246097008-9","PostojiJMBAG","0246097008","Pranjić","Ivan","Pranjić Ivan","ivan pranjic","one first and last name",9,2.3,1,"No"]
["7606002719-1","PostojiJMBAG","7606002719","Prydatkevych ","Petro","Prydatkevych  Petro","petro","repeating characters in first name",1,2.7,1,"No"]
["0321021553-4","PostojiJMBAG","0321021553","Putnik","Noa","Putnik Noa","noa","repeating characters in first name",4,null,2.75,"No"]
["Ne postoji JMBAG","Radošević Nikola -1",null,"Radošević","Nikola ","Radošević Nikola ","nikola r","reversed username 4",1,2.3,1.25,"No"]
["Ne postoji JMBAG","Radošević Nikola -3",null,"Radošević","Nikola ","Radošević Nikola ","nikola r","reversed username 4",3,2.1,0,"No"]
["Ne postoji JMBAG","Radošević Nikola -4",null,"Radošević","Nikola ","Radošević Nikola ","nikola r","reversed username 4",4,2.8,1.5,"No"]
["Ne postoji JMBAG","Radošević Nikola -7",null,"Radošević","Nikola ","Radošević Nikola ","nikola r","reversed username 4",7,null,0.5,"Yes"]
["Ne postoji JMBAG","Radošević Nikola -8",null,"Radošević","Nikola ","Radošević Nikola ","nikola r","reversed username 4",8,2.8,1,"No"]
["1191252850-1","PostojiJMBAG","1191252850","Rajič","Slavko","Rajič Slavko","sr","reversed username 4",1,2.6,1.375,"No"]
["1191252850-2","PostojiJMBAG","1191252850","Rajič","Slavko","Rajič Slavko","slavko","repeating characters in first name",2,2.5,1,"No"]
["1191252850-3","PostojiJMBAG","1191252850","Rajič","Slavko","Rajič Slavko","sr","*** starts with",3,3,1.25,"No"]
["1191252850-4","PostojiJMBAG","1191252850","Rajič","Slavko","Rajič Slavko","sr","*** starts with",4,3,2.5,"No"]
["1191252850-6","PostojiJMBAG","1191252850","Rajič","Slavko","Rajič Slavko","sr","*** starts with",6,2.7,2.5,"No"]
["1191252850-7","PostojiJMBAG","1191252850","Rajič","Slavko","Rajič Slavko","sr","*** starts with",7,2.6,0.5,"No"]
["1191252850-9","PostojiJMBAG","1191252850","Rajič","Slavko","Rajič Slavko","sr","*** starts with",9,3,1.5,"No"]
["0321029002-1","PostojiJMBAG","0321029002","Rajković","Dalio","Rajković Dalio","dalio rajkovic","one first and last name",1,3,0.5,"No"]
["0321025755-1","PostojiJMBAG","0321025755","Rakulj","Luka","Rakulj Luka","luka r","reversed username 4",1,2.3,0.75,"Yes"]
["0321025755-2","PostojiJMBAG","0321025755","Rakulj","Luka","Rakulj Luka","lrakulj","direct",2,2.2,0.5,"No"]
["0321025755-3","PostojiJMBAG","0321025755","Rakulj","Luka","Rakulj Luka","l rakulj","reversed username",3,2.6,1.5,"No"]
["0321025755-5","PostojiJMBAG","0321025755","Rakulj","Luka","Rakulj Luka","lrakulj","direct",5,3,0,"No"]
["0321025755-6","PostojiJMBAG","0321025755","Rakulj","Luka","Rakulj Luka","l rakulj","reversed username",6,2.1,0.5,"No"]
["0321025755-8","PostojiJMBAG","0321025755","Rakulj","Luka","Rakulj Luka","l rakulj","reversed username",8,1.7,0.5,"No"]
["0321025755-9","PostojiJMBAG","0321025755","Rakulj","Luka","Rakulj Luka","l rakulj","reversed username",9,1.8,0,"No"]
["7606002724-1","PostojiJMBAG","7606002724","Ramić","Tin","Ramić Tin","tramic","reversed username 4",1,3,1.5,"No"]
["7606002724-3","PostojiJMBAG","7606002724","Ramić","Tin","Ramić Tin","tinr","reversed username 4",3,3,0.75,"No"]
["7606002724-4","PostojiJMBAG","7606002724","Ramić","Tin","Ramić Tin","tramic","direct",4,3,3,"No"]
[{"$f":"IF(C607<>\"\",C607&\"-\"& VALUE(I607),\"Ne postoji JMBAG\")","v":"7606002724-5"},{"$f":"IF(C607<>\"\",\"PostojiJMBAG\",F607&\"-\"& VALUE(I607))","v":"PostojiJMBAG"},7606002724,"Ramić","Tin","Ramić Tin","tinr","reversed username 4",5,3,1.5,"No"]
["7606002724-6","PostojiJMBAG",7606002724,"Ramić","Tin","Ramić Tin","tin r","reversed username 4",6,3,3,"No"]
["7606002724-7","PostojiJMBAG",7606002724,"Ramić","Tin","Ramić Tin","tin r","reversed username 4",7,2.3,1,"No"]
["7606002724-8","PostojiJMBAG",7606002724,"Ramić","Tin","Ramić Tin","tin r","reversed username 4",8,2.8,0,"No"]
["7606002222-1","PostojiJMBAG",7606002222,"Ramljak","Ilija","Ramljak Ilija","ramljak i","reversed username 2",1,0.8,0.5,"No"]
["7606002222-3","PostojiJMBAG",7606002222,"Ramljak","Ilija","Ramljak Ilija","ramljaki","reversed username 2",3,2.5,0,"No"]
["7606002222-4","PostojiJMBAG",7606002222,"Ramljak","Ilija","Ramljak Ilija","ramljak i","reversed username 2",4,1.9,2,"No"]
["7606002222-5","PostojiJMBAG",7606002222,"Ramljak","Ilija","Ramljak Ilija","ilijaramljak","one first and last name",5,1.2,1,"No"]
["7606002222-7","PostojiJMBAG",7606002222,"Ramljak","Ilija","Ramljak Ilija","ilijar","reversed username 4",7,3,0.5,"No"]
["7606002222-8","PostojiJMBAG",7606002222,"Ramljak","Ilija","Ramljak Ilija","ilija ramljak","one first and last name",8,3,2,"No"]
["125146643-4","PostojiJMBAG",125146643,"Ramljak","Josip","Ramljak Josip","josip","repeating characters in first name",4,null,3,"No"]
["7606000831-1","PostojiJMBAG",7606000831,"Raz","Ohad","Raz Ohad","ohad raz","reversed username 4",1,3,0.75,"No"]
["7606000831-2","PostojiJMBAG",7606000831,"Raz","Ohad","Raz Ohad","ohad raz","one first and last name",2,3,2.5,"No"]
["7606000831-3","PostojiJMBAG",7606000831,"Raz","Ohad","Raz Ohad","ohad raz","one first and last name",3,3,0.75,"No"]
["7606000831-5","PostojiJMBAG",7606000831,"Raz","Ohad","Raz Ohad","ohad","repeating characters in first name",5,3,0,"No"]
["7606000831-6","PostojiJMBAG",7606000831,"Raz","Ohad","Raz Ohad","ohad raz","one first and last name",6,3,1,"No"]
["7606000831-7","PostojiJMBAG",7606000831,"Raz","Ohad","Raz Ohad","ohad raz","repeating characters in first name",7,3,0.25,"No"]
["7606000831-8","PostojiJMBAG",7606000831,"Raz","Ohad","Raz Ohad","ohad","repeating characters in first name",8,3,2,"No"]
["7606000831-9","PostojiJMBAG",7606000831,"Raz","Ohad","Raz Ohad","ohad","repeating characters in first name",9,3,0.5,"No"]
["321025071-1","PostojiJMBAG",321025071,"Režek","Ivan","Režek Ivan","ivanr","reversed username 4",1,1.9,1.75,"No"]
["321025071-3","PostojiJMBAG",321025071,"Režek","Ivan","Režek Ivan","ivanr","reversed username 4",3,2.1,0.75,"No"]
["321025071-7","PostojiJMBAG",321025071,"Režek","Ivan","Režek Ivan","ivanr","reversed username 4",7,1.5,1.5,"No"]
["321029359-1","PostojiJMBAG",321029359,"Rho","Hyerin","Rho Hyerin","hyerin","repeating characters in first name",1,3,1,"No"]
["321029359-2","PostojiJMBAG",321029359,"Rho","Hyerin","Rho Hyerin","hyerin","repeating characters in first name",2,2.3,1,"No"]
["321029359-3","PostojiJMBAG",321029359,"Rho","Hyerin","Rho Hyerin","rho","repeating characters in first name",3,3,1.25,"No"]
["321029359-5","PostojiJMBAG",321029359,"Rho","Hyerin","Rho Hyerin","hyerin","repeating characters in first name",5,2.5,0,"No"]
["321029359-6","PostojiJMBAG",321029359,"Rho","Hyerin","Rho Hyerin","hyerin","repeating characters in first name",6,2.8,1,"No"]
["321029359-7","PostojiJMBAG",321029359,"Rho","Hyerin","Rho Hyerin","hyerin","repeating characters in first name",7,3,0.5,"No"]
["321029359-8","PostojiJMBAG",321029359,"Rho","Hyerin","Rho Hyerin","hyerin","repeating characters in first name",8,3,1.5,"No"]
["321029359-9","PostojiJMBAG",321029359,"Rho","Hyerin","Rho Hyerin","hyerin","repeating characters in first name",9,3,0.5,"No"]
["Ne postoji JMBAG","Rodić Blaž-1",null,"Rodić","Blaž","Rodić Blaž","blaz r","reversed username 4",1,1.9,1.75,"No"]
["Ne postoji JMBAG","Rodić Blaž-3",null,"Rodić","Blaž","Rodić Blaž","blaz r","reversed username 4",3,2.5,0,"No"]
["Ne postoji JMBAG","Rodić Blaž-4",null,"Rodić","Blaž","Rodić Blaž","blaz r","reversed username 4",4,2.7,2.5,"No"]
["Ne postoji JMBAG","Rodić Blaž-5",null,"Rodić","Blaž","Rodić Blaž","blaz r","reversed username 4",5,2.8,1,"No"]
["Ne postoji JMBAG","Rodić Blaž-6",null,"Rodić","Blaž","Rodić Blaž","blaz r","reversed username 4",6,2.8,1,"No"]
["Ne postoji JMBAG","Rodić Blaž-7",null,"Rodić","Blaž","Rodić Blaž","blaz r","reversed username 4",7,2.5,0.166666666666666,"No"]
["Ne postoji JMBAG","Rodić Blaž-8",null,"Rodić","Blaž","Rodić Blaž","blaz r","reversed username 4",8,3,1.5,"No"]
["Ne postoji JMBAG","Rodić Blaž-9",null,"Rodić","Blaž","Rodić Blaž","blaz r","reversed username 4",9,2.5,0,"No"]
["7606001982-1","PostojiJMBAG",7606001982,"Ruljančić","Leon","Ruljančić Leon","leon ruljancic","one first and last name",1,1.5,2,"No"]
["7606001982-3","PostojiJMBAG",7606001982,"Ruljančić","Leon","Ruljančić Leon","leon ruljancic","one first and last name",3,3,1.25,"No"]
["7606001982-4","PostojiJMBAG",7606001982,"Ruljančić","Leon","Ruljančić Leon","leon ruljancic","one first and last name",4,3,2,"No"]
["7606001982-7","PostojiJMBAG",7606001982,"Ruljančić","Leon","Ruljančić Leon","leon ruljancic","one first and last name",7,3,0,"No"]
["Ne postoji JMBAG","Salaj Luka-1",null,"Salaj","Luka","Salaj Luka","lsalaj","direct",1,1.5,1.5,"No"]
["Ne postoji JMBAG","Salaj Luka-3",null,"Salaj","Luka","Salaj Luka","lsalaj","direct",3,2,0,"No"]
["Ne postoji JMBAG","Salaj Luka-4",null,"Salaj","Luka","Salaj Luka","lsalaj","direct",4,2,1.5,"No"]
["Ne postoji JMBAG","Salaj Luka-5",null,"Salaj","Luka","Salaj Luka","lsalaj","direct",5,1.2,0.5,"No"]
["Ne postoji JMBAG","Salaj Luka-6",null,"Salaj","Luka","Salaj Luka","lsalaj","direct",6,2.5,0.5,"No"]
["Ne postoji JMBAG","Salaj Luka-7",null,"Salaj","Luka","Salaj Luka","lsalaj","direct",7,null,0,"No"]
["Ne postoji JMBAG","Salaj Luka-8",null,"Salaj","Luka","Salaj Luka","lsalaj","direct",8,2.3,0,"No"]
["Ne postoji JMBAG","Selimović Alen-1",null,"Selimović","Alen","Selimović Alen","alenselimovic","one first and last name",1,2.3,0,"No"]
["Ne postoji JMBAG","Selimović Alen-3",null,"Selimović","Alen","Selimović Alen","aselimo","repeating characters in first name",3,1.1,0.166666666666666,"No"]
["Ne postoji JMBAG","Selimović Alen-4",null,"Selimović","Alen","Selimović Alen","aselimo","direct",4,0.7,0,"No"]
["Ne postoji JMBAG","Selimović Alen-5",null,"Selimović","Alen","Selimović Alen","alen selimovic","repeating characters in first name",5,2.6,0.5,"No"]
["Ne postoji JMBAG","Selimović Alen-6",null,"Selimović","Alen","Selimović Alen","alen","repeating characters in first name",6,2.4,0.5,"No"]
["Ne postoji JMBAG","Selimović Alen-7",null,"Selimović","Alen","Selimović Alen","alen selimovic","repeating characters in first name",7,2,1.16666666666666,"No"]
["Ne postoji JMBAG","Selimović Alen-8",null,"Selimović","Alen","Selimović Alen","alenselimovic","one first and last name",8,1.9,1,"No"]
["67631594-3","PostojiJMBAG",67631594,"Sirk","Ian","Sirk Ian","ian","repeating characters in first name",3,null,0,"No"]
["67631594-7","PostojiJMBAG",67631594,"Sirk","Ian","Sirk Ian","ian","repeating characters in first name",7,null,0,"No"]
["Ne postoji JMBAG","Sliško Leonard-1",null,"Sliško","Leonard","Sliško Leonard","leonard s","reversed username 4",1,null,0.5,"No"]
["Ne postoji JMBAG","Sliško Leonard-3",null,"Sliško","Leonard","Sliško Leonard","slisko","only last name",3,null,1,"No"]
["Ne postoji JMBAG","Sliško Leonard-9",null,"Sliško","Leonard","Sliško Leonard","slisko","only last name",9,null,0.5,"No"]
["7606002771-1","PostojiJMBAG",7606002771,"Slišković","Fran","Slišković Fran","frans","reversed username 4",1,null,0,"No"]
["7606002771-3","PostojiJMBAG",7606002771,"Slišković","Fran","Slišković Fran","fran sliskovic","one first and last name",3,1,0,"No"]
["7606002771-4","PostojiJMBAG",7606002771,"Slišković","Fran","Slišković Fran","fran sliskovic","one first and last name",4,1.6,1,"No"]
[{"$f":"IF(C671<>\"\",C671&\"-\"& VALUE(I671),\"Ne postoji JMBAG\")","v":"7606002334-3"},{"$f":"IF(C671<>\"\",\"PostojiJMBAG\",F671&\"-\"& VALUE(I671))","v":"PostojiJMBAG"},7606002334,"Slopko","Marko","Slopko Marko","mslopko","direct",3,1.8,0,"No"]
["229041075-4","PostojiJMBAG",229041075,"Smetiško","Lovro","Smetiško Lovro","ls","*** starts with",4,null,2.5,"No"]
["329027636-1","PostojiJMBAG",329027636,"Somolanji","Larisa","Somolanji Larisa","larisa s","reversed username 4",1,1.9,1,"No"]
["329027636-3","PostojiJMBAG",329027636,"Somolanji","Larisa","Somolanji Larisa","larisa s","reversed username 4",3,2,0.75,"No"]
["329027636-4","PostojiJMBAG",329027636,"Somolanji","Larisa","Somolanji Larisa","larisa s","reversed username 4",4,2.8,1,"No"]
["321027333-1","PostojiJMBAG",321027333,"Srnec","Marko","Srnec Marko","marko s","reversed username 4",1,null,1,"No"]
["321027333-3","PostojiJMBAG",321027333,"Srnec","Marko","Srnec Marko","ms","*** starts with",3,null,0,"No"]
["321027333-4","PostojiJMBAG",321027333,"Srnec","Marko","Srnec Marko","markos","reversed username 4",4,null,2.25,"No"]
["321027333-5","PostojiJMBAG",321027333,"Srnec","Marko","Srnec Marko","ms","*** starts with",5,null,0,"No"]
["321027333-6","PostojiJMBAG",321027333,"Srnec","Marko","Srnec Marko","ms","*** starts with",6,null,1.5,"No"]
["321027333-7","PostojiJMBAG",321027333,"Srnec","Marko","Srnec Marko","ms","*** starts with",7,null,0,"No"]
["321027333-9","PostojiJMBAG",321027333,"Srnec","Marko","Srnec Marko","ms","*** starts with",9,null,0,"No"]
["Ne postoji JMBAG","Stanić Diego-1",null,"Stanić","Diego","Stanić Diego","dstanic","reversed username",1,null,0.75,"No"]
["Ne postoji JMBAG","Stanić Diego-3",null,"Stanić","Diego","Stanić Diego","dstanic","reversed username",3,0.6,0,"No"]
["7606001288-1","PostojiJMBAG",7606001288,"Stipančić","Nia","Stipančić Nia","nia s","reversed username 4",1,null,1.5,"No"]
["7606003282-3","PostojiJMBAG",7606003282,"Strehovec","Hrvoje","Strehovec Hrvoje","hrvoje","repeating characters in first name",3,1.4,0.5,"No"]
["7606003282-7","PostojiJMBAG",7606003282,"Strehovec","Hrvoje","Strehovec Hrvoje","hrvoje","repeating characters in first name",7,2.1,0,"No"]
["7606003282-8","PostojiJMBAG",7606003282,"Strehovec","Hrvoje","Strehovec Hrvoje","hrvoje","repeating characters in first name",8,2.9,0,"No"]
["7606001998-1","PostojiJMBAG",7606001998,"Stupar","Tin","Stupar Tin","tin s","reversed username 4",1,3,2.75,"No"]
["7606001998-2","PostojiJMBAG",7606001998,"Stupar","Tin","Stupar Tin","tin s","reversed username 4",2,3,2.5,"No"]
["7606001998-3","PostojiJMBAG",7606001998,"Stupar","Tin","Stupar Tin","tin s","reversed username 4",3,3,1.5,"No"]
["7606001998-5","PostojiJMBAG",7606001998,"Stupar","Tin","Stupar Tin","tin s","reversed username 4",5,3,0,"No"]
["7606001998-6","PostojiJMBAG",7606001998,"Stupar","Tin","Stupar Tin","tin s","reversed username 4",6,3,3,"No"]
["7606001998-7","PostojiJMBAG",7606001998,"Stupar","Tin","Stupar Tin","tin s","reversed username 4",7,3,1.75,"No"]
["7606001998-8","PostojiJMBAG",7606001998,"Stupar","Tin","Stupar Tin","tin s","reversed username 4",8,3,2.5,"No"]
["7606001998-9","PostojiJMBAG",7606001998,"Stupar","Tin","Stupar Tin","tin s","reversed username 4",9,3,2.5,"No"]
["Ne postoji JMBAG","Sunko Ruben Emerik-1",null,"Sunko","Ruben Emerik","Sunko Ruben Emerik","rubens","one first and abbreviated last name",1,2.3,1.5,"No"]
["7606002238-1","PostojiJMBAG",7606002238,"Suša","Toma","Suša Toma","tsusa","direct",1,2.6,2.5,"No"]
["7606002238-3","PostojiJMBAG",7606002238,"Suša","Toma","Suša Toma","tsusa","direct",3,3,2,"No"]
["7606002238-4","PostojiJMBAG",7606002238,"Suša","Toma","Suša Toma","toma susa","one first and last name",4,2,3,"No"]
["7606002238-5","PostojiJMBAG",7606002238,"Suša","Toma","Suša Toma","tsusa","direct",5,3,0.5,"No"]
["7606002238-6","PostojiJMBAG",7606002238,"Suša","Toma","Suša Toma","tsusa","direct",6,3,2,"No"]
["7606002238-7","PostojiJMBAG",7606002238,"Suša","Toma","Suša Toma","tsusa","direct",7,2.5,1.75,"No"]
["7606002238-9","PostojiJMBAG",7606002238,"Suša","Toma","Suša Toma","tsusa","direct",9,3,1.5,"No"]
["Ne postoji JMBAG","Tago Shota-1",null,"Tago","Shota","Tago Shota","shotat","reversed username 4",1,1,1.5,"No"]
["Ne postoji JMBAG","Tago Shota-2",null,"Tago","Shota","Tago Shota","shotat","reversed username 4",2,2.4,0,"No"]
["Ne postoji JMBAG","Tago Shota-3",null,"Tago","Shota","Tago Shota","shotat","reversed username 4",3,1.8,1,"No"]
["Ne postoji JMBAG","Tago Shota-6",null,"Tago","Shota","Tago Shota","shota tago","one first and last name",6,2.9,1,"No"]
["Ne postoji JMBAG","Tago Shota-8",null,"Tago","Shota","Tago Shota","shota tago","one first and last name",8,2.4,0,"No"]
["Ne postoji JMBAG","Tago Shota-9",null,"Tago","Shota","Tago Shota","shota tago","one first and last name",9,1.8,0,"No"]
["171282625-1","PostojiJMBAG",171282625,"Taraš","Kristian Tino","Taraš Kristian Tino","ktaras","direct",1,2.6,2.25,"No"]
["171282625-3","PostojiJMBAG",171282625,"Taraš","Kristian Tino","Taraš Kristian Tino","ktaras","direct",3,3,1.5,"No"]
["171282625-4","PostojiJMBAG",171282625,"Taraš","Kristian Tino","Taraš Kristian Tino","ktaras","direct",4,3,2.5,"No"]
["171282625-6","PostojiJMBAG",171282625,"Taraš","Kristian Tino","Taraš Kristian Tino","ktaras","direct",6,2.9,1.5,"No"]
["321029161-5","PostojiJMBAG",321029161,"Tičarić - Škunca","Damjan","Tičarić - Škunca Damjan","dt","*** starts with",5,null,0,"No"]
["321026817-1","PostojiJMBAG",321026817,"Tolić","Petar","Tolić Petar","petar t","reversed username 4",1,1.5,2,"No"]
["321026817-3","PostojiJMBAG",321026817,"Tolić","Petar","Tolić Petar","ptolic","direct",3,1.1,0,"No"]
["321026817-5","PostojiJMBAG",321026817,"Tolić","Petar","Tolić Petar","ptolic","direct",5,null,0,"No"]
["321026817-6","PostojiJMBAG",321026817,"Tolić","Petar","Tolić Petar","ptolic","direct",6,2.8,0.5,"No"]
["321026817-7","PostojiJMBAG",321026817,"Tolić","Petar","Tolić Petar","ptolic","direct",7,null,1.5,"No"]
["66321140-3","PostojiJMBAG",66321140,"Tomas","Ante","Tomas Ante","ante tomas","repeating characters in first name",3,3,0.25,"No"]
["66321140-4","PostojiJMBAG",66321140,"Tomas","Ante","Tomas Ante","ante tomas","one first and last name",4,3,2.5,"No"]
["66321140-6","PostojiJMBAG",66321140,"Tomas","Ante","Tomas Ante","ante","repeating characters in first name",6,3,2.5,"No"]
["66321140-7","PostojiJMBAG",66321140,"Tomas","Ante","Tomas Ante","ante","repeating characters in first name",7,2.9,2,"No"]
["66321140-9","PostojiJMBAG",66321140,"Tomas","Ante","Tomas Ante","ante","repeating characters in first name",9,2.3,0,"No"]
["Ne postoji JMBAG","Turudić Mario-3",null,"Turudić","Mario","Turudić Mario","mariot","reversed username 4",3,3,1.5,"No"]
["Ne postoji JMBAG","Turudić Mario-4",null,"Turudić","Mario","Turudić Mario","mt","*** starts with",4,2,2,"No"]
["Ne postoji JMBAG","Turudić Mario-5",null,"Turudić","Mario","Turudić Mario","mariot","reversed username 4",5,1,0,"No"]
["Ne postoji JMBAG","Turudić Mario-6",null,"Turudić","Mario","Turudić Mario","mariot","reversed username 4",6,3,0,"No"]
["Ne postoji JMBAG","Turudić Mario-7",null,"Turudić","Mario","Turudić Mario","mariot","reversed username 4",7,2.3,0.25,"No"]
["Ne postoji JMBAG","Turudić Mario-8",null,"Turudić","Mario","Turudić Mario","mariot","reversed username 4",8,3,1,"No"]
["Ne postoji JMBAG","Turudić Mario-9",null,"Turudić","Mario","Turudić Mario","mariot","reversed username 4",9,3,0.5,"No"]
["7606002820-1","PostojiJMBAG",7606002820,"Vidović","Ivan","Vidović Ivan","ivan v","reversed username 4",1,1.1,2.5,"No"]
["243130266-1","PostojiJMBAG",243130266,"Vidović","Toni","Vidović Toni","toniv","reversed username 4",1,2.6,0.75,"No"]
[{"$f":"IF(C735<>\"\",C735&\"-\"& VALUE(I735),\"Ne postoji JMBAG\")","v":"243130266-3"},{"$f":"IF(C735<>\"\",\"PostojiJMBAG\",F735&\"-\"& VALUE(I735))","v":"PostojiJMBAG"},243130266,"Vidović","Toni","Vidović Toni","toni","repeating characters in first name",3,1.5,2,"No"]
["243130266-4","PostojiJMBAG",243130266,"Vidović","Toni","Vidović Toni","vidovic","reversed username 4",4,1.8,2.125,"No"]
["243130266-5","PostojiJMBAG",243130266,"Vidović","Toni","Vidović Toni","toni","repeating characters in first name",5,3,1.5,"No"]
["243130266-7","PostojiJMBAG",243130266,"Vidović","Toni","Vidović Toni","vidovic","repeating characters in first name",7,1.5,1.66666666666666,"No"]
["243130266-8","PostojiJMBAG",243130266,"Vidović","Toni","Vidović Toni","toni","repeating characters in first name",8,1.3,1.5,"No"]
["243130266-9","PostojiJMBAG",243130266,"Vidović","Toni","Vidović Toni","toni","repeating characters in first name",9,1.5,0.5,"No"]
["246071606-1","PostojiJMBAG",246071606,"Vodopić","Kristian","Vodopić Kristian","kristian v","reversed username 4",1,2.3,2.5,"No"]
["246071606-3","PostojiJMBAG",246071606,"Vodopić","Kristian","Vodopić Kristian","kristianv","reversed username 4",3,1.1,0.75,"No"]
["246071606-4","PostojiJMBAG",246071606,"Vodopić","Kristian","Vodopić Kristian","kristianv","reversed username 4",4,3,2.75,"No"]
["246071606-7","PostojiJMBAG",246071606,"Vodopić","Kristian","Vodopić Kristian","kristianv","reversed username 4",7,2.5,1.75,"No"]
["246071606-9","PostojiJMBAG",246071606,"Vodopić","Kristian","Vodopić Kristian","kristianv","reversed username 4",9,1.8,1,"No"]
["Ne postoji JMBAG","Vudrag Saša-1",null,"Vudrag","Saša","Vudrag Saša","svudrag","direct",1,null,1.25,"No"]
["Ne postoji JMBAG","Vudrag Saša-4",null,"Vudrag","Saša","Vudrag Saša","svudrag","direct",4,1.5,2.5,"No"]
["Ne postoji JMBAG","Vudrag Saša-5",null,"Vudrag","Saša","Vudrag Saša","svudrag","direct",5,1.1,0.5,"No"]
["Ne postoji JMBAG","Vudrag Saša-8",null,"Vudrag","Saša","Vudrag Saša","svudrag","direct",8,2.4,2,"No"]
["Ne postoji JMBAG","Vudrag Saša-9",null,"Vudrag","Saša","Vudrag Saša","svudrag","direct",9,1.3,0,"No"]
["34090260-1","PostojiJMBAG",34090260,"Vuković","Petar","Vuković Petar","petarv","reversed username 4",1,2.3,1.25,"No"]
["34090260-2","PostojiJMBAG",34090260,"Vuković","Petar","Vuković Petar","petarv","reversed username 4",2,2,0,"No"]
["34090260-6","PostojiJMBAG",34090260,"Vuković","Petar","Vuković Petar","petarv","reversed username 4",6,1.5,0,"No"]
["7606003310-1","PostojiJMBAG",7606003310,"Vučković","Martin","Vučković Martin","martin v","reversed username 4",1,1.1,0.75,"No"]
["7606003310-3","PostojiJMBAG",7606003310,"Vučković","Martin","Vučković Martin","martin","repeating characters in first name",3,2.9,1,"No"]
["7606003310-4","PostojiJMBAG",7606003310,"Vučković","Martin","Vučković Martin","martin","repeating characters in first name",4,2,2,"No"]
["7606003310-5","PostojiJMBAG",7606003310,"Vučković","Martin","Vučković Martin","martin","repeating characters in first name",5,0.6,1,"No"]
["321010285-1","PostojiJMBAG",321010285,"Zajec","Danijel","Zajec Danijel","danijelzajec","one first and last name",1,2.6,1,"No"]
["321010285-7","PostojiJMBAG",321010285,"Zajec","Danijel","Zajec Danijel","danijelz","reversed username 4",7,1.5,2,"No"]
["Ne postoji JMBAG","Zanetti Antonio -1",null,"Zanetti","Antonio ","Zanetti Antonio ","antonio zanetti","one first and last name",1,1.5,1.5,"No"]
["Ne postoji JMBAG","Zanetti Antonio -3",null,"Zanetti","Antonio ","Zanetti Antonio ","zanetti","only last name",3,2,0,"No"]
["Ne postoji JMBAG","Zanetti Antonio -5",null,"Zanetti","Antonio ","Zanetti Antonio ","zanetti","only last name",5,0.8,0,"No"]
["Ne postoji JMBAG","Zanetti Antonio -7",null,"Zanetti","Antonio ","Zanetti Antonio ","zanetti","only last name",7,2.9,1.5,"No"]
["321013175-6","PostojiJMBAG",321013175,"Zeneli","Driton","Zeneli Driton","dz","*** starts with",6,null,2,"No"]
["246092316-5","PostojiJMBAG",246092316,"Zečević","Ilia Marco","Zečević Ilia Marco","iliazecevic","one first and last name",5,2,0,"No"]
["246092316-9","PostojiJMBAG",246092316,"Zečević","Ilia Marco","Zečević Ilia Marco","iliazecevic","one first and last name",9,3,0.5,"No"]
["321027861-3","PostojiJMBAG",321027861,"Zrinščak","Ema Solfrid","Zrinščak Ema Solfrid","ez","*** starts with",3,0.4,0,"No"]
["321027861-4","PostojiJMBAG",321027861,"Zrinščak","Ema Solfrid","Zrinščak Ema Solfrid","ez","*** starts with",4,1.8,0,"No"]
["246094053-1","PostojiJMBAG",246094053,"Zubčić","Petar","Zubčić Petar","petarz","reversed username 4",1,1.5,1.25,"No"]
["246094053-3","PostojiJMBAG",246094053,"Zubčić","Petar","Zubčić Petar","petarz","reversed username 4",3,1,0.833333333333333,"No"]
["246094053-4","PostojiJMBAG",246094053,"Zubčić","Petar","Zubčić Petar","petarz","reversed username 4",4,1.8,1,"No"]
["246094053-7","PostojiJMBAG",246094053,"Zubčić","Petar","Zubčić Petar","petar","repeating characters in first name",7,1.4,0,"No"]
["135272004-1","PostojiJMBAG",135272004,"Ćusak","Niko","Ćusak Niko","cusakn","reversed username 2",1,1.5,2,"No"]
["135272004-3","PostojiJMBAG",135272004,"Ćusak","Niko","Ćusak Niko","ncusak","direct",3,1.5,0.25,"No"]
["135272004-4","PostojiJMBAG",135272004,"Ćusak","Niko","Ćusak Niko","cusakn","reversed username 2",4,1.9,2,"No"]
["135272004-5","PostojiJMBAG",135272004,"Ćusak","Niko","Ćusak Niko","ncusak","direct",5,2,0,"No"]
["135272004-6","PostojiJMBAG",135272004,"Ćusak","Niko","Ćusak Niko","ncusak","direct",6,3,1.5,"No"]
["135272004-9","PostojiJMBAG",135272004,"Ćusak","Niko","Ćusak Niko","ncusak","direct",9,1,0,"No"]
["7606001113-1","PostojiJMBAG",7606001113,"Čakalo","Ilona","Čakalo Ilona","ilona cakalo","one first and last name",1,2.6,1.5,"No"]
["7606001113-3","PostojiJMBAG",7606001113,"Čakalo","Ilona","Čakalo Ilona","ilona cakalo","one first and last name",3,3,2,"No"]
["7606001113-4","PostojiJMBAG",7606001113,"Čakalo","Ilona","Čakalo Ilona","ilona cakalo","one first and last name",4,3,2.5,"No"]
["7606001113-5","PostojiJMBAG",7606001113,"Čakalo","Ilona","Čakalo Ilona","ilona cakalo","one first and last name",5,2,2,"No"]
["7606001113-6","PostojiJMBAG",7606001113,"Čakalo","Ilona","Čakalo Ilona","ilona cakalo","one first and last name",6,3,3,"No"]
["7606001113-7","PostojiJMBAG",7606001113,"Čakalo","Ilona","Čakalo Ilona","ilona cakalo","one first and last name",7,3,1,"No"]
["7606001113-9","PostojiJMBAG",7606001113,"Čakalo","Ilona","Čakalo Ilona","ilona cakalo","one first and last name",9,2.5,0.5,"No"]
["7606001748-1","PostojiJMBAG",7606001748,"Čolig","Mihael","Čolig Mihael","mihael colig","one first and last name",1,1.9,1.25,"No"]
["7606001748-3","PostojiJMBAG",7606001748,"Čolig","Mihael","Čolig Mihael","mihael colig","one first and last name",3,0.4,0.25,"No"]
["7606001748-4","PostojiJMBAG",7606001748,"Čolig","Mihael","Čolig Mihael","mihael colig","one first and last name",4,1.8,3,"No"]
["7606000756-1","PostojiJMBAG",7606000756,"Čopac","Klavdii","Čopac Klavdii","klavdii copac","one first and last name",1,2.3,0.5,"No"]
["7606000756-2","PostojiJMBAG",7606000756,"Čopac","Klavdii","Čopac Klavdii","klavdii copac","one first and last name",2,2.2,0.5,"No"]
["7606000756-3","PostojiJMBAG",7606000756,"Čopac","Klavdii","Čopac Klavdii","klavdii copac","one first and last name",3,2.1,0.75,"No"]
["7606000756-6","PostojiJMBAG",7606000756,"Čopac","Klavdii","Čopac Klavdii","klavdii copac","one first and last name",6,3,1,"No"]
["7606000756-7","PostojiJMBAG",7606000756,"Čopac","Klavdii","Čopac Klavdii","klavdii c","reversed username 4",7,2.5,2,"No"]
["7606000756-8","PostojiJMBAG",7606000756,"Čopac","Klavdii","Čopac Klavdii","klavdii c","reversed username 4",8,3,2,"No"]
["7606002168-1","PostojiJMBAG",7606002168,"Črnjak","Kristijan","Črnjak Kristijan","crnjak","only last name",1,1.5,1.5,"No"]
["7606002168-4","PostojiJMBAG",7606002168,"Črnjak","Kristijan","Črnjak Kristijan","crnjak","only last name",4,3,3,"No"]
["7606002168-7","PostojiJMBAG",7606002168,"Črnjak","Kristijan","Črnjak Kristijan","crnjakk","reversed username 2",7,2.8,2,"No"]
["7606002168-9","PostojiJMBAG",7606002168,"Črnjak","Kristijan","Črnjak Kristijan","crnjak","only last name",9,0.5,0,"No"]
[{"$f":"IF(C799<>\"\",C799&\"-\"& VALUE(I799),\"Ne postoji JMBAG\")","v":"7606001802-1"},{"$f":"IF(C799<>\"\",\"PostojiJMBAG\",F799&\"-\"& VALUE(I799))","v":"PostojiJMBAG"},7606001802,"Đevoić","Lovro","Đevoić Lovro","devoic l","reversed username 2",1,1.5,1,"No"]
["Ne postoji JMBAG","Šafran Barbara-1",null,"Šafran","Barbara","Šafran Barbara","barbara s","reversed username 4",1,null,2,"No"]
["Ne postoji JMBAG","Šafran Barbara-3",null,"Šafran","Barbara","Šafran Barbara","barbara","repeating characters in first name",3,null,2,"No"]
["Ne postoji JMBAG","Šafran Barbara-5",null,"Šafran","Barbara","Šafran Barbara","barbara s","reversed username 4",5,2.3,2,"No"]
["Ne postoji JMBAG","Šafran Barbara-8",null,"Šafran","Barbara","Šafran Barbara","barbara s","reversed username 4",8,2.6,1,"No"]
["321027375-3","PostojiJMBAG",321027375,"Šarinić","Stjepko","Šarinić Stjepko","stjepko","repeating characters in first name",3,null,0,"No"]
["321027375-4","PostojiJMBAG",321027375,"Šarinić","Stjepko","Šarinić Stjepko","stjepko","repeating characters in first name",4,null,1.75,"No"]
["7606001300-1","PostojiJMBAG",7606001300,"Šećić","Edijan","Šećić Edijan","edijans","reversed username 4",1,2.3,1,"No"]
["7606001300-4","PostojiJMBAG",7606001300,"Šećić","Edijan","Šećić Edijan","edijan","repeating characters in first name",4,2.7,1.5,"No"]
["7606002792-1","PostojiJMBAG",7606002792,"Šimunec","Nikolas","Šimunec Nikolas","nikolas s","reversed username 4",1,2.6,1,"No"]
["7606002792-3","PostojiJMBAG",7606002792,"Šimunec","Nikolas","Šimunec Nikolas","nikolas s","reversed username 4",3,1.9,0,"No"]
["7606002792-4","PostojiJMBAG",7606002792,"Šimunec","Nikolas","Šimunec Nikolas","nikolas s","reversed username 4",4,2,0,"No"]
["Ne postoji JMBAG","Šiprak Lovro-1",null,"Šiprak","Lovro","Šiprak Lovro","lsiprak","direct",1,0.8,2,"No"]
["Ne postoji JMBAG","Šiprak Lovro-3",null,"Šiprak","Lovro","Šiprak Lovro","lsiprak","one first and last name",3,1.4,2.75,"No"]
["Ne postoji JMBAG","Šiprak Lovro-6",null,"Šiprak","Lovro","Šiprak Lovro","lovro siprak","one first and last name",6,1.7,2,"No"]
["Ne postoji JMBAG","Šiprak Lovro-7",null,"Šiprak","Lovro","Šiprak Lovro","lovro siprak","one first and last name",7,null,1.5,"No"]
["7606001001-1","PostojiJMBAG",7606001001,"Šmalc","Jan","Šmalc Jan","jan smalc","reversed username 4",1,2.6,2.75,"No"]
["7606001001-3","PostojiJMBAG",7606001001,"Šmalc","Jan","Šmalc Jan","jan smalc","one first and last name",3,3,1.5,"No"]
["7606001001-4","PostojiJMBAG",7606001001,"Šmalc","Jan","Šmalc Jan","jan smalc","one first and last name",4,3,3,"No"]
["7606001001-5","PostojiJMBAG",7606001001,"Šmalc","Jan","Šmalc Jan","jan smalc","one first and last name",5,3,0.5,"No"]
["7606001001-7","PostojiJMBAG",7606001001,"Šmalc","Jan","Šmalc Jan","jan s","reversed username 4",7,3,0.75,"No"]
["7606001001-9","PostojiJMBAG",7606001001,"Šmalc","Jan","Šmalc Jan","jan s","reversed username 4",9,2.5,1,"No"]
["7606002035-1","PostojiJMBAG",7606002035,"Šoper","Erik","Šoper Erik","esoper","one first and last name",1,0.8,0.5,"No"]
["7606002035-4","PostojiJMBAG",7606002035,"Šoper","Erik","Šoper Erik","erik soper","one first and last name",4,2,3,"No"]
["7606002035-7","PostojiJMBAG",7606002035,"Šoper","Erik","Šoper Erik","erik soper","one first and last name",7,2,0,"No"]
["Ne postoji JMBAG","Šterc Luka-1",null,"Šterc","Luka","Šterc Luka","luka s","reversed username 4",1,1.9,1,"No"]
["Ne postoji JMBAG","Šterc Luka-3",null,"Šterc","Luka","Šterc Luka","luka s","reversed username 4",3,2.6,2,"No"]
["Ne postoji JMBAG","Šterc Luka-9",null,"Šterc","Luka","Šterc Luka","luka s","reversed username 4",9,3,1,"No"]
["7606002446-1","PostojiJMBAG",7606002446,"Štrumberger","Erik","Štrumberger Erik","estrumb","direct",1,3,2,"No"]
["7606002446-4","PostojiJMBAG",7606002446,"Štrumberger","Erik","Štrumberger Erik","estrumb","direct",4,3,2.5,"No"]
["7606002446-7","PostojiJMBAG",7606002446,"Štrumberger","Erik","Štrumberger Erik","erik s","reversed username 4",7,3,0.25,"No"]
["7606002446-9","PostojiJMBAG",7606002446,"Štrumberger","Erik","Štrumberger Erik","erik s","reversed username 4",9,3,1,"No"]
["Ne postoji JMBAG","Žagar Patrik-1",null,"Žagar","Patrik","Žagar Patrik","patrik z","reversed username 4",1,null,2.5,"No"]
["Ne postoji JMBAG","Žagar Patrik-2",null,"Žagar","Patrik","Žagar Patrik","patrik z","reversed username 4",2,null,0,"No"]
["165092428-1","PostojiJMBAG",165092428,"Živalj","Dominik","Živalj Dominik","dzivalj","reversed username 4",1,2.6,1,"No"]
["165092428-3","PostojiJMBAG",165092428,"Živalj","Dominik","Živalj Dominik","dzivalj","direct",3,1.5,0.75,"No"]
["165092428-7","PostojiJMBAG",165092428,"Živalj","Dominik","Živalj Dominik","dzivalj","direct",7,1.5,0.5,"No"]
["321029252-1","PostojiJMBAG",321029252,"Živković","Marko","Živković Marko","mzivkovic","reversed username",1,2.6,2.75,"No"]
["321029252-3","PostojiJMBAG",321029252,"Živković","Marko","Živković Marko","mzivkovic","reversed username",3,3,1.5,"No"]
["321029252-5","PostojiJMBAG",321029252,"Živković","Marko","Živković Marko","mzivkovic","reversed username",5,2.5,2,"No"]
["321029247-7","PostojiJMBAG",321029247,"Živković","Marko","Živković Marko","mzivkov","direct",7,2.4,1.5,"No"]
["7606003347-1","PostojiJMBAG",7606003347,"Županović","Vito","Županović Vito","vito zupanovic","one first and last name",1,1.3,1.25,"No"]
["7606003347-2","PostojiJMBAG",7606003347,"Županović","Vito","Županović Vito","vito zupanovic","one first and last name",2,2.4,1.5,"No"]
["7606003347-3","PostojiJMBAG",7606003347,"Županović","Vito","Županović Vito","vito zupanovic","one first and last name",3,3,1,"No"]
["7606003347-5","PostojiJMBAG",7606003347,"Županović","Vito","Županović Vito","vito zupanovic","one first and last name",5,null,0.5,"No"]
["7606003347-6","PostojiJMBAG",7606003347,"Županović","Vito","Županović Vito","vito zupanovic","one first and last name",6,null,1,"No"]
["7606003347-7","PostojiJMBAG",7606003347,"Županović","Vito","Županović Vito","vito zupanovic","one first and last name",7,2.6,0,"No"]
["7606003347-8","PostojiJMBAG",7606003347,"Županović","Vito","Županović Vito","vito","repeating characters in first name",8,2.7,1,"No"]
["7606003347-9","PostojiJMBAG",7606003347,"Županović","Vito","Županović Vito","vito zupanovic","one first and last name",9,1,0.5,"No"]

{"sheet":"HR","index":1,"n_rows":14,"n_cols":5,"rows_kept":14,"merged":[[3,0,13,0],[3,2,4,2],[3,3,3,4]]}
["U žuto polje upišite JMBAG.\nAko Vam JMBAG nije dodijeljen, upišite puno prezime i ime (kako je navedeno u InfoEduci)"]
[null,{"$f":"IFERROR(IFERROR(\"  \" & VLOOKUP($A$2,Points!C:L,4,FALSE),\"  \" & VLOOKUP($A$2,Points!F:L,1,FALSE)),\" Da biste vidjeli rezultate upišite ispravan JMBAG\")","v":" Da biste vidjeli rezultate upišite ispravan JMBAG"}]
[]
["Ova tablica je informativnog karaktera!\n\nAko ste pisali kviz za koji ne vidite bodove u tablici to znači da sustav nije prepoznao Vaše ime s kojim ste se prijavili u Kahoot kviz.\n\nU tablici su prikazani samo rezultati Kahoot kvizova i povezanih školskih zadaća.\n\nAko niste pisali Kahoot kviz za neki ishod onda Vam za taj ishod u tablici desno nisu vidljivi niti bodovi ostvareni na školskoj zadaći. \n\nSlužbeni bodovi dodijeljeni za rezultate ostvarene na školskim zadaćama su vidljivi u InfoEduci.\n\nU slučaju da veći broj kvizova pokriva isti ishod, u obzir se uzima srednja vrijednost ostvarenih bodova.",null,"Ishod","Bodovi"]
[{"$nulls":3},"Moodle","Kahoot"]
[null,null,1,{"$f":"IFERROR(IFERROR(VLOOKUP($A$2&\"-\"&$C6,Points!A:L,10,FALSE),VLOOKUP($A$2&\"-\"&$C6,Points!B:L,9,FALSE)),\"-\")","v":"-"},{"$f":"IFERROR(IFERROR(VLOOKUP($A$2&\"-\"&$C6,Points!A:L,11,FALSE),VLOOKUP($A$2&\"-\"&$C6,Points!B:L,10,FALSE)),\"-\")","v":"-"}]
[null,null,2,{"$f":"IFERROR(IFERROR(VLOOKUP($A$2&\"-\"&$C7,Points!A:L,10,FALSE),VLOOKUP($A$2&\"-\"&$C7,Points!B:L,9,FALSE)),\"-\")","v":"-"},{"$f":"IFERROR(IFERROR(VLOOKUP($A$2&\"-\"&$C7,Points!A:L,11,FALSE),VLOOKUP($A$2&\"-\"&$C7,Points!B:L,10,FALSE)),\"-\")","v":"-"}]
[null,null,3,{"$f":"IFERROR(IFERROR(VLOOKUP($A$2&\"-\"&$C8,Points!A:L,10,FALSE),VLOOKUP($A$2&\"-\"&$C8,Points!B:L,9,FALSE)),\"-\")","v":"-"},{"$f":"IFERROR(IFERROR(VLOOKUP($A$2&\"-\"&$C8,Points!A:L,11,FALSE),VLOOKUP($A$2&\"-\"&$C8,Points!B:L,10,FALSE)),\"-\")","v":"-"}]
[null,null,4,{"$f":"IFERROR(IFERROR(VLOOKUP($A$2&\"-\"&$C9,Points!A:L,10,FALSE),VLOOKUP($A$2&\"-\"&$C9,Points!B:L,9,FALSE)),\"-\")","v":"-"},{"$f":"IFERROR(IFERROR(VLOOKUP($A$2&\"-\"&$C9,Points!A:L,11,FALSE),VLOOKUP($A$2&\"-\"&$C9,Points!B:L,10,FALSE)),\"-\")","v":"-"}]
[null,null,5,{"$f":"IFERROR(IFERROR(VLOOKUP($A$2&\"-\"&$C10,Points!A:L,10,FALSE),VLOOKUP($A$2&\"-\"&$C10,Points!B:L,9,FALSE)),\"-\")","v":"-"},{"$f":"IFERROR(IFERROR(VLOOKUP($A$2&\"-\"&$C10,Points!A:L,11,FALSE),VLOOKUP($A$2&\"-\"&$C10,Points!B:L,10,FALSE)),\"-\")","v":"-"}]
[null,null,6,{"$f":"IFERROR(IFERROR(VLOOKUP($A$2&\"-\"&$C11,Points!A:L,10,FALSE),VLOOKUP($A$2&\"-\"&$C11,Points!B:L,9,FALSE)),\"-\")","v":"-"},{"$f":"IFERROR(IFERROR(VLOOKUP($A$2&\"-\"&$C11,Points!A:L,11,FALSE),VLOOKUP($A$2&\"-\"&$C11,Points!B:L,10,FALSE)),\"-\")","v":"-"}]
[null,null,7,{"$f":"IFERROR(IFERROR(VLOOKUP($A$2&\"-\"&$C12,Points!A:L,10,FALSE),VLOOKUP($A$2&\"-\"&$C12,Points!B:L,9,FALSE)),\"-\")","v":"-"},{"$f":"IFERROR(IFERROR(VLOOKUP($A$2&\"-\"&$C12,Points!A:L,11,FALSE),VLOOKUP($A$2&\"-\"&$C12,Points!B:L,10,FALSE)),\"-\")","v":"-"}]
[null,null,8,{"$f":"IFERROR(IFERROR(VLOOKUP($A$2&\"-\"&$C13,Points!A:L,10,FALSE),VLOOKUP($A$2&\"-\"&$C13,Points!B:L,9,FALSE)),\"-\")","v":"-"},{"$f":"IFERROR(IFERROR(VLOOKUP($A$2&\"-\"&$C13,Points!A:L,11,FALSE),VLOOKUP($A$2&\"-\"&$C13,Points!B:L,10,FALSE)),\"-\")","v":"-"}]
[null,null,9,{"$f":"IFERROR(IFERROR(VLOOKUP($A$2&\"-\"&$C14,Points!A:L,10,FALSE),VLOOKUP($A$2&\"-\"&$C14,Points!B:L,9,FALSE)),\"-\")","v":"-"},{"$f":"IFERROR(IFERROR(VLOOKUP($A$2&\"-\"&$C14,Points!A:L,11,FALSE),VLOOKUP($A$2&\"-\"&$C14,Points!B:L,10,FALSE)),\"-\")","v":"-"}]

{"sheet":"EN","index":2,"n_rows":14,"n_cols":5,"rows_kept":14,"hidden":true,"merged":[[3,0,13,0],[3,2,4,2],[3,3,3,4]]}
["Type JMBAG in the yellow field.\nIf JMBAG is not assigned to you, type a full surname and first name (as stated in the InfoEduka)"]
[null,{"$f":"IFERROR(IFERROR(\"  \" & VLOOKUP($A$2,Points!C:L,4,FALSE),\"  \" & VLOOKUP($A$2,Points!F:L,1,FALSE)),\" To view the results, enter a valid JMBAG.\")","v":" To view the results, enter a valid JMBAG."}]
[]
["This table is for informational purposes only!\n\nIf you completed a quiz but do not see your score in the table, it means the system did not recognize the name you used to log in to the Kahoot quiz.\n\nThe table displays only the results from Kahoot quizzes and related school assignments.\n\nIf you did not complete a Kahoot quiz for a specific learning outcome, the points earned on the corresponding school assignment will not be visible in the table.\n\nOfficial scores for school assignments are available in the InfoEduca system.\n\nIn cases where multiple quizzes cover the same learning outcome, the average score of all relevant quizzes is considered.",null,"Learning outcome","Points"]
[{"$nulls":3},"Moodle","Kahoot"]
[null,null,1,{"$f":"IFERROR(IFERROR(VLOOKUP($A$2&\"-\"&$C6,Points!A:L,10,FALSE),VLOOKUP($A$2&\"-\"&$C6,Points!B:L,9,FALSE)),\"-\")","v":"-"},{"$f":"IFERROR(IFERROR(VLOOKUP($A$2&\"-\"&$C6,Points!A:L,11,FALSE),VLOOKUP($A$2&\"-\"&$C6,Points!B:L,10,FALSE)),\"-\")","v":"-"}]
[null,null,2,{"$f":"IFERROR(IFERROR(VLOOKUP($A$2&\"-\"&$C7,Points!A:L,10,FALSE),VLOOKUP($A$2&\"-\"&$C7,Points!B:L,9,FALSE)),\"-\")","v":"-"},{"$f":"IFERROR(IFERROR(VLOOKUP($A$2&\"-\"&$C7,Points!A:L,11,FALSE),VLOOKUP($A$2&\"-\"&$C7,Points!B:L,10,FALSE)),\"-\")","v":"-"}]
[null,null,3,{"$f":"IFERROR(IFERROR(VLOOKUP($A$2&\"-\"&$C8,Points!A:L,10,FALSE),VLOOKUP($A$2&\"-\"&$C8,Points!B:L,9,FALSE)),\"-\")","v":"-"},{"$f":"IFERROR(IFERROR(VLOOKUP($A$2&\"-\"&$C8,Points!A:L,11,FALSE),VLOOKUP($A$2&\"-\"&$C8,Points!B:L,10,FALSE)),\"-\")","v":"-"}]
[null,null,4,{"$f":"IFERROR(IFERROR(VLOOKUP($A$2&\"-\"&$C9,Points!A:L,10,FALSE),VLOOKUP($A$2&\"-\"&$C9,Points!B:L,9,FALSE)),\"-\")","v":"-"},{"$f":"IFERROR(IFERROR(VLOOKUP($A$2&\"-\"&$C9,Points!A:L,11,FALSE),VLOOKUP($A$2&\"-\"&$C9,Points!B:L,10,FALSE)),\"-\")","v":"-"}]
[null,null,5,{"$f":"IFERROR(IFERROR(VLOOKUP($A$2&\"-\"&$C10,Points!A:L,10,FALSE),VLOOKUP($A$2&\"-\"&$C10,Points!B:L,9,FALSE)),\"-\")","v":"-"},{"$f":"IFERROR(IFERROR(VLOOKUP($A$2&\"-\"&$C10,Points!A:L,11,FALSE),VLOOKUP($A$2&\"-\"&$C10,Points!B:L,10,FALSE)),\"-\")","v":"-"}]
[null,null,6,{"$f":"IFERROR(IFERROR(VLOOKUP($A$2&\"-\"&$C11,Points!A:L,10,FALSE),VLOOKUP($A$2&\"-\"&$C11,Points!B:L,9,FALSE)),\"-\")","v":"-"},{"$f":"IFERROR(IFERROR(VLOOKUP($A$2&\"-\"&$C11,Points!A:L,11,FALSE),VLOOKUP($A$2&\"-\"&$C11,Points!B:L,10,FALSE)),\"-\")","v":"-"}]
[null,null,7,{"$f":"IFERROR(IFERROR(VLOOKUP($A$2&\"-\"&$C12,Points!A:L,10,FALSE),VLOOKUP($A$2&\"-\"&$C12,Points!B:L,9,FALSE)),\"-\")","v":"-"},{"$f":"IFERROR(IFERROR(VLOOKUP($A$2&\"-\"&$C12,Points!A:L,11,FALSE),VLOOKUP($A$2&\"-\"&$C12,Points!B:L,10,FALSE)),\"-\")","v":"-"}]
[null,null,8,{"$f":"IFERROR(IFERROR(VLOOKUP($A$2&\"-\"&$C13,Points!A:L,10,FALSE),VLOOKUP($A$2&\"-\"&$C13,Points!B:L,9,FALSE)),\"-\")","v":"-"},{"$f":"IFERROR(IFERROR(VLOOKUP($A$2&\"-\"&$C13,Points!A:L,11,FALSE),VLOOKUP($A$2&\"-\"&$C13,Points!B:L,10,FALSE)),\"-\")","v":"-"}]
[null,null,9,{"$f":"IFERROR(IFERROR(VLOOKUP($A$2&\"-\"&$C14,Points!A:L,10,FALSE),VLOOKUP($A$2&\"-\"&$C14,Points!B:L,9,FALSE)),\"-\")","v":"-"},{"$f":"IFERROR(IFERROR(VLOOKUP($A$2&\"-\"&$C14,Points!A:L,11,FALSE),VLOOKUP($A$2&\"-\"&$C14,Points!B:L,10,FALSE)),\"-\")","v":"-"}]